Workbook

Sheet modProv (hidden)

Sheet modList05 (hidden)

Sheet Лог обновления (hidden)
A1: Дата/Время | B1: Сообщение | C1: Статус
A2: 2019-04-18T08:34:24 | B2: Проверка доступных обновлений... | C2: Информация
A3: 2019-04-18T08:34:25 | B3: Доступно обновление до версии 1.0.3 | C3: Информация
A4: 2019-04-18T08:34:25 | B4: Описание изменений: Версия 1.0.3 1. Исправление формулы расчета показателя 'Доля расходов, % (от суммы расходов по указанной статье)' листа 'Форма 4.3.2' 2. Корректировка проверки при сохранении Версия 1.0.2 1. Снята обязательность заполнения пунктов 21-21.2 листа 'Форма 4.3.1' Версия 1.0.1 1. Исправлен расчёт п.3.2 ('расходы на топливо') листа 'Форма 4.3.1' | C4: Информация
A5: 2019-04-18T08:34:25 | B5: Размер файла обновления: 332800 байт | C5: Информация
A6: 2019-04-18T08:34:30 | B6: Подготовка к обновлению... | C6: Информация
A7: 2019-04-18T08:34:44 | B7: Сохранение файла резервной копии: D:\документы\downloads\123.BKP.xlsb | C7: Информация
A8: 2019-04-18T08:34:45 | B8: Резервная копия создана: D:\документы\downloads\123.BKP.xlsb | C8: Информация
A9: 2019-04-18T08:34:45 | B9: Создание книги для установки обновлений... | C9: Информация
A10: 2019-04-18T08:34:46 | B10: Файл обновления загружен: D:\документы\downloads\UPDATE.FAS.JKH.OPEN.INFO.BALANCE.WARM.TO.1.0.3.38.xls | C10: Информация
A11: 2019-04-24T10:55:11 | B11: Проверка доступных обновлений... | C11: Информация
A12: 2019-04-24T10:55:13 | B12: Нет доступных обновлений для отчёта с кодом FAS.JKH.OPEN.INFO.BALANCE.WARM! | C12: Информация
A13: 2019-04-29T09:30:45 | B13: Проверка доступных обновлений... | C13: Информация
A14: 2019-04-29T09:30:47 | B14: Нет доступных обновлений для отчёта с кодом FAS.JKH.OPEN.INFO.BALANCE.WARM! | C14: Информация
A15: 2019-04-29T14:01:02 | B15: Проверка доступных обновлений... | C15: Информация
A16: 2019-04-29T14:01:05 | B16: Нет доступных обновлений для отчёта с кодом FAS.JKH.OPEN.INFO.BALANCE.WARM! | C16: Информация
A17: 2019-04-29T14:01:32 | B17: Проверка доступных обновлений... | C17: Информация
A18: 2019-04-29T14:01:33 | B18: Нет доступных обновлений для отчёта с кодом FAS.JKH.OPEN.INFO.BALANCE.WARM! | C18: Информация
A19: 2019-04-29T14:04:01 | B19: Проверка доступных обновлений... | C19: Информация
A20: 2019-04-29T14:04:02 | B20: Нет доступных обновлений для отчёта с кодом FAS.JKH.OPEN.INFO.BALANCE.WARM! | C20: Информация
A21: 2019-04-29T14:11:41 | B21: Проверка доступных обновлений... | C21: Информация
A22: 2019-04-29T14:11:44 | B22: Нет доступных обновлений для отчёта с кодом FAS.JKH.OPEN.INFO.BALANCE.WARM! | C22: Информация
A23: 2019-04-30T13:21:40 | B23: Проверка доступных обновлений... | C23: Информация
A24: 2019-04-30T13:21:41 | B24: Нет доступных обновлений для отчёта с кодом FAS.JKH.OPEN.INFO.BALANCE.WARM! | C24: Информация
A25: 2019-04-30T13:23:32 | B25: Проверка доступных обновлений... | C25: Информация
A26: 2019-04-30T13:23:34 | B26: Нет доступных обновлений для отчёта с кодом FAS.JKH.OPEN.INFO.BALANCE.WARM! | C26: Информация

Sheet Титульный
F1: 28795512
F4: =version -> 
E5: Информация о показателях финансово-хозяйственной деятельности, об основных потребительских характеристиках товаров и услуг, об инвестиционных программах, о способах приобретения, стоимости и объемах товаров, необходимых для производства товаров и (или) оказания услуг организацией в сфере теплоснабжения*
E7: Субъект РФ | F7: Ивановская область
E9: Публикация2 | F9: На сайте регулирующего органа
E11: Отсутствует Интернет в границах территории МО, где организация осуществляет регулируемые виды деятельности | F11: нет
E13: Тип отчета | F13: первичное раскрытие информации
E14: Дата внесения изменений в информацию, подлежащую раскрытию | F14: 29.04.2019
E16: Применяется дифференциация тарифа по централизованным системам теплоснабжения?
C20: 2018 | E20: Отчётный период (год) | F20: 2018
E23: Является ли данное юридическое лицо подразделением (филиалом) другой организации | F23: нет
E26: Наименование организации | F26: АО "ИГТСК"
E27: Наименование филиала
E28: ИНН | F28: 3702733445
E29: КПП | F29: 370201001
E30: Вид деятельности
E32: Тип теплоснабжающей организации | F32: Регулируемая организация
E34: Организация осуществляет поставку товаров (оказание услуг) только по нерегулируемым ценам | F34: нет
E36: Регулируемая организация осуществляет сдачу годового бухгалтерского баланса в налоговые органы | F36: да
E37: Дата направления годового бухгалтерского баланса в налоговые органы | F37: 04.03.2019
E39: Превышает ли выручка от регулируемой деятельности 80% совокупной выручки за отчетный год | F39: да
E41: Организация выполняет инвестиционную программу | F41: нет
E42: Инвестиционная программа относится к деятельности, при осуществлении которой расчеты за товары (услуги) в сфере теплоснабжения осуществляются по регулируемым ценам (тарифам) (за исключением деятельности по подключению (технологическому присоединению) к системе теплоснабжения) | F42: =F41 -> нет
E43: Дифференциация по территориям и системам коммунальной инфраструктуры применяется для инвестиционных программ | F43: нет
E45: Почтовый адрес регулируемой организации | F45: 153021
E46: Фамилия, имя, отчество руководителя | F46: Рябов А.А.
F48: Ответственный за составление формы
E49: Фамилия, имя, отчество | F49: Гудков И.В.
E50: Должность | F50: зам. генерального директора
E51: (код) номер телефона | F51: 8-(4932)-59-28-13
E52: e-mail | F52: os@igtsk.ru
E56: * Информация о способах приобретения, стоимости и объемах товаров, необходимых для производства регулируемых товаров и (или) оказания регулируемых услуг регулируемых организаций, публикуется по форме 4.9 регулируемыми организациями в течение 10 календарных дней с момента подачи заявления об установлении цен (тарифов) в сфере теплоснабжения в орган исполнительной власти субъекта Российской Федерации в области государственного регулирования цен (тарифов)

Sheet Форма 4.3.1
G1: 4 | H1: 5
F2: тыс. руб. | I2: Указываются прочие расходы, которые подлежат отнесению на регулируемые виды деятельности в соответствии с законодательством в сфере теплоснабжения.
F4: кг у. т./Гкал | I4: Указывается норматив удельного расхода условного топлива при производстве тепловой энергии источниками тепловой энергии для отдельного источника тепловой энергии.
B6: vt | D6: =A6 -> 0 | F6: х | G6: х | H6: х | I6: В колонке «Наименование параметра» указывается вид приобретаемого топлива. Если приобретается несколько видов топлива, то информация по каждому из них указывается отдельно.
E7: общая стоимость | G7: =G8*G9+G10 -> 0 | H7: =H8*H9+H10 -> 0
D8: =A6&".1" -> .1 | E8: объем | I8: В колонке «Единица измерения» указываются единицы измерения объема приобретаемого топлива. В колонке «Информация» указывается величина объема приобретаемого топлива.
D9: =A6&".2" -> .2 | E9: стоимость за единицу объема | F9: тыс. руб.
D10: =A6&".3" -> .3 | E10: стоимость доставки | F10: тыс. руб.
D11: =A6&".4" -> .4 | E11: способ приобретения | F11: х
F13: кг усл. топл./Гкал | I13: Указывается плановый удельный расход условного топлива при производстве тепловой энергии источниками тепловой энергии для отдельного источника тепловой энергии.
F15: кг усл. топл./Гкал | I15: Указывается фактический удельный расход условного топлива при производстве тепловой энергии источниками тепловой энергии для отдельного источника тепловой энергии.
F17: Гкал/ч | I17: Указывается установленная тепловая мощность для источника тепловой энергии.
I19: 4
D21: Информация об основных показателях финансово-хозяйственной деятельности регулируемой организации, включая структуру основных производственных затрат (в части регулируемой деятельности), информация об основных технико-экономических параметрах деятельности единой теплоснабжающей организации, теплоснабжающей организации и теплосетевой организации в ценовых зонах теплоснабжения1
G23: 22 | H23: 25
D24: Параметры формы | I24: Описание параметров формы
D25: № п/п | E25: Наименование параметра | F25: Единица измерения | G25: Вид деятельности: - Сбыт. Тепловая энергия Территория оказания услуг: - без дифференциации Централизованная система теплоснабжения: - наименование отсутствует | H25: Вид деятельности: - Сбыт. Теплоноситель Территория оказания услуг: - без дифференциации Централизованная система теплоснабжения: - наименование отсутствует
G26: Информация | H26: Информация
D27: 1 | E27: 2 | F27: 3 | G27: =G1 -> 4 | H27: =H1 -> 5
D28: 1 | E28: Дата сдачи годового бухгалтерского баланса в налоговые органы | F28: х | G28: =IF(buhg_flag="да",IF(dateBuhg="","Не указана",dateBuhg),"Не осуществлялась") -> 04.03.2019 | H28: =IF(buhg_flag="да",IF(dateBuhg="","Не указана",dateBuhg),"Не осуществлялась") -> 04.03.2019 | I28: Указывается календарная дата сдачи бухгалтерского баланса в налоговые органы в случае, если организация сдает бухгалтерский баланс в налоговые органы по виду регулируемой деятельности, в отношении которого размещаются данные. Дата указывается в виде «ДД.ММ.ГГГГ».
D29: 2 | E29: Выручка от регулируемой деятельности по виду деятельности | F29: тыс. руб. | G29: 2453505.747 | H29: =85026.073+1099.37 -> 86125.443 | I29: Указывается выручка от регулируемой деятельности по виду деятельности в сфере теплоснабжения.
D30: 3 | E30: Себестоимость производимых товаров (оказываемых услуг) по регулируемому виду деятельности, включая: | F30: тыс. руб. | G30: =SUM(G31:G32,G39,G42:G50,G53,G56,G60) -> 2838955.978 | H30: =SUM(H31:H32,H39,H42:H50,H53,H56,H60) -> 98908.49967 | I30: Указывается суммарная себестоимость производимых товаров.
D31: 3.1 | E31: расходы на покупаемую тепловую энергию (мощность), теплоноситель | F31: тыс. руб. | G31: =2589606.10525172+812.3863301638 -> 2590418.492 | H31: =99720.886-812.3863301638 -> 98908.49967
D32: 3.2 | E32: расходы на топливо | F32: тыс. руб. | G32: =SUMIF($E33:$E38,$E7,G33:G38) -> 0 | H32: =SUMIF($E33:$E38,$E7,H33:H38) -> 0 | I32: Указываются суммарные расходы на приобретение топлива всех видов.
A33: 3.2.0
E38: Добавить вид топлива
D39: 3.3 | E39: Расходы на покупаемую электрическую энергию (мощность), используемую в технологическом процессе | F39: тыс. руб. | G39: =1293.39167 -> 1293.39167 | H39: 0
D40: 3.3.1 | E40: Средневзвешенная стоимость 1 кВт.ч (с учетом мощности) | F40: руб. | G40: =G39/G41 -> 6.534360342 | H40: 0
D41: 3.3.2 | E41: Объем приобретенной электрической энергии | F41: тыс. кВт·ч | G41: =197.936998 -> 197.936998 | H41: 0
D42: 3.4 | E42: Расходы на приобретение холодной воды, используемой в технологическом процессе | F42: тыс. руб. | G42: 0 | H42: 0
D43: 3.5 | E43: Расходы на хим. реагенты, используемые в технологическом процессе | F43: тыс. руб. | G43: 0 | H43: 0
D44: 3.6 | E44: Расходы на оплату труда основного производственного персонала | F44: тыс. руб. | G44: =65114.3048129009-G46 -> 35898.24599 | H44: 0
D45: 3.7 | E45: Отчисления на социальные нужды основного производственного персонала | F45: тыс. руб. | G45: =19407.8524667805-G47 -> 10919.0252 | H45: 0
D46: 3.8 | E46: Расходы на оплату труда административно-управленческого персонала | F46: тыс. руб. | G46: =29216.05882 -> 29216.05882 | H46: 0
D47: 3.9 | E47: Отчисления на социальные нужды административно-управленческого персонала | F47: тыс. руб. | G47: =8488.82727 -> 8488.82727 | H47: 0
D48: 3.10 | E48: Расходы на амортизацию основных производственных средств | F48: тыс. руб. | G48: 12083.60935 | H48: 0
D49: 3.11 | E49: Расходы на аренду имущества, используемого для осуществления регулируемого вида деятельности | F49: тыс. руб. | G49: =43.5529899999999 -> 43.55299 | H49: 0
D50: 3.12 | E50: Общепроизводственные расходы, в том числе: | F50: тыс. руб. | G50: 0 | H50: 0 | I50: Указывается общая сумма общепроизводственных расходов.
D51: 3.12.1 | E51: Расходы на текущий ремонт | F51: тыс. руб. | G51: 0 | H51: 0 | I51: Указываются расходы на текущий ремонт, отнесенные к общепроизводственным расходам.
D52: 3.12.2 | E52: Расходы на капитальный ремонт | F52: тыс. руб. | G52: 0 | H52: 0 | I52: Указываются расходы на капитальный ремонт, отнесенные к общепроизводственным расходам.
D53: 3.13 | E53: Общехозяйственные расходы, в том числе: | F53: тыс. руб. | G53: 0 | H53: 0 | I53: Указывается общая сумма общехозяйственных расходов.
D54: 3.13.1 | E54: Расходы на текущий ремонт | F54: тыс. руб. | G54: 0 | H54: 0 | I54: Указываются расходы на текущий ремонт, отнесенные к общехозяйственным расходам.
D55: 3.13.2 | E55: Расходы на капитальный ремонт | F55: тыс. руб. | G55: 0 | H55: 0 | I55: Указываются расходы на капитальный ремонт, отнесенные к общехозяйственным расходам.
D56: 3.14 | E56: Расходы на капитальный и текущий ремонт основных производственных средств | F56: тыс. руб. | G56: 0 | H56: 0
E57: Информация об объемах товаров и услуг, их стоимости и способах приобретения у тех организаций, сумма оплаты услуг которых превышает 20 процентов суммы расходов по указанной статье расходов | G57: отсутствует | H57: отсутствует | L57: =nerr(MATCH("есть",List01_flag_index_1,0)) -> 
G59: отсутствует | H59: отсутствует | L59: =nerr(MATCH("есть",List01_flag_index_2,0)) -> 
D60: 3.15 | E60: Прочие расходы, которые подлежат отнесению на регулируемые виды деятельности, в том числе: | F60: тыс. руб. | G60: =SUM(G61:G69) -> 150594.7749 | H60: =SUM(H61:H69) -> 0 | I60: Указывается общая сумма прочих расходов, которые подлежат отнесению на регулируемые виды деятельности в соответствии с законодательством в сфере теплоснабжения.
D61: 3.15.0
C62: О | D62: 3.15.1 | E62: Расходы на оплату работ и услуг производственного характера по договорам со сторонними организациями | F62: тыс. руб. | G62: =20728.5376305563 -> 20728.53763 | H62: 0 | I62: Указываются прочие расходы, которые подлежат отнесению на регулируемые виды деятельности в соответствии с законодательством в сфере теплоснабжения.
C63: О | D63: 3.15.2 | E63: Расходы на оплату иных работ и услуг по договорам с организациями | F63: тыс. руб. | G63: =4400.95169941947 -> 4400.951699 | H63: 0 | I63: Указываются прочие расходы, которые подлежат отнесению на регулируемые виды деятельности в соответствии с законодательством в сфере теплоснабжения.
C64: О | D64: 3.15.3 | E64: Расходы на служебные командировки | F64: тыс. руб. | G64: =75.56907 -> 75.56907 | H64: 0 | I64: Указываются прочие расходы, которые подлежат отнесению на регулируемые виды деятельности в соответствии с законодательством в сфере теплоснабжения.
C65: О | D65: 3.15.4 | E65: Расходы на обучение персонала | F65: тыс. руб. | G65: =46.879332 -> 46.879332 | H65: 0 | I65: Указываются прочие расходы, которые подлежат отнесению на регулируемые виды деятельности в соответствии с законодательством в сфере теплоснабжения.
C66: О | D66: 3.15.5 | E66: Расходы на оплату услуг организаций, осуществляющих регулир.виды деятельности | F66: тыс. руб. | G66: 674.6106434 | H66: 0 | I66: Указываются прочие расходы, которые подлежат отнесению на регулируемые виды деятельности в соответствии с законодательством в сфере теплоснабжения.
C67: О | D67: 3.15.6 | E67: Расходы на уплату налогов, сборов и других обязательных платежей | F67: тыс. руб. | G67: =2126.82154780652 -> 2126.821548 | H67: 0 | I67: Указываются прочие расходы, которые подлежат отнесению на регулируемые виды деятельности в соответствии с законодательством в сфере теплоснабжения.
C68: О | D68: 3.15.7 | E68: Прочие расходы, которые подлежат отнесению на регулируемые виды деятельности | F68: тыс. руб. | G68: =120483.484424172+16.4895446+1005.12703511567+2329.695609-G39 -> 122541.4049 | H68: 0 | I68: Указываются прочие расходы, которые подлежат отнесению на регулируемые виды деятельности в соответствии с законодательством в сфере теплоснабжения.
E69: Добавить прочие расходы
D70: 4 | E70: Валовая прибыль (убытки) от реализации товаров и оказания услуг по регулируемому виду деятельности | F70: тыс. руб. | G70: =G29-G30 -> -385450.2307 | H70: =H29-H31 -> -12783.05667
D71: 5 | E71: Чистая прибыль, полученная от регулируемого вида деятельности, в том числе: | F71: тыс. руб. | G71: 0 | H71: 0 | I71: Указывается общая сумма чистой прибыли, полученной от регулируемого вида деятельности.
D72: 5.1 | E72: Размер расходования чистой прибыли на финансирование мероприятий, предусмотренных инвестиционной программой регулируемой организации | F72: тыс. руб. | G72: 0 | H72: 0
D73: 6 | E73: Изменение стоимости основных фондов, в том числе: | F73: тыс. руб. | G73: 0 | H73: 0 | I73: Указывается общее изменение стоимости основных фондов.
D74: 6.1 | E74: Изменение стоимости основных фондов за счет их ввода в эксплуатацию (вывода из эксплуатации) | F74: тыс. руб. | G74: 0 | H74: 0 | I74: Указываются общее изменение стоимости основных фондов за счет их ввода в эксплуатацию и вывода из эксплуатации.
D75: 6.1.1 | E75: Изменение стоимости основных фондов за счет их ввода в эксплуатацию | F75: тыс. руб. | G75: 0 | H75: 0 | I75: Указываются изменение стоимости основных фондов за счет их ввода в эксплуатацию.
D76: 6.1.2 | E76: Изменение стоимости основных фондов за счет их вывода в эксплуатацию | F76: тыс. руб. | G76: 0 | H76: 0 | I76: Указываются изменение стоимости основных фондов за счет их вывода из эксплуатации.
D77: 6.2 | E77: Изменение стоимости основных фондов за счет их переоценки | F77: тыс. руб. | G77: 0 | H77: 0
D78: 7 | E78: Годовая бухгалтерская отчетность, включая бухгалтерский баланс и приложения к нему | F78: x | G78: https://portal.eias.ru/Portal/DownloadPage.aspx?type=12&guid=da692d8b-d8b8-4bef-bb2c-1f3eba6f5c14 | H78: https://portal.eias.ru/Portal/DownloadPage.aspx?type=12&guid=da692d8b-d8b8-4bef-bb2c-1f3eba6f5c14 | I78: Указывается ссылка на документ, предварительно загруженный в хранилище файлов ФГИС ЕИАС. Регулируемыми организациями информация раскрывается в случае, если выручка от регулируемых видов деятельности превышает 80 процентов совокупной выручки за отчетный год.
D79: 8 | E79: Установленная тепловая мощность объектов основных фондов, используемых для теплоснабжения, в том числе по каждому источнику тепловой энергии | F79: Гкал/ч | G79: 0 | H79: 0 | I79: Указывается суммарная установленная тепловая мощность объектов основных фондов, используемых для осуществления теплоснабжения. Регулируемыми организациями указывается информация по объектам, используемым для осуществления регулируемых видов деятельности.
D80: 8.0
E81: Добавить источник тепловой энергии | I81: В случае наличия нескольких источников тепловой энергии установленная тепловая мощность по каждому из них указывается в отдельных строках.
D82: 9 | E82: Тепловая нагрузка по договорам теплоснабжения | F82: Гкал/ч | G82: 529.8261651 | H82: 0 | I82: Регулируемыми организациями указывается информация по договорам, заключенным в рамках осуществления регулируемых видов деятельности
D83: 10 | E83: Объем вырабатываемой тепловой энергии | F83: тыс. Гкал | G83: 0 | H83: 0 | I83: Регулируемыми организациями указывается информация тепловой энергии, выработанной в рамках осуществления регулируемых видов деятельности.
D84: 10.1 | E84: Объем приобретаемой тепловой энергии | F84: тыс. Гкал | G84: =1485.0933653 -> 1485.093365 | H84: 0 | I84: Информация указывается только едиными теплоснабжающими организациями.
D85: 11 | E85: Объем тепловой энергии, отпускаемой потребителям | F85: тыс. Гкал | G85: =1316.889658 -> 1316.889658 | H85: 0 | I85: Указывается общий объем тепловой энергии, отпускаемой потребителям. Регулируемыми организациями указывается информация по договорам, заключенным в рамках осуществления регулируемых видов деятельности.
D86: 11.1 | E86: Определенном по приборам учета, в т.ч.: | F86: тыс. Гкал | G86: 499.352775 | H86: 0
D87: 11.1.1 | E87: Определенный по приборам учета объем тепловой энергии, отпускаемой по договорам потребителям, максимальный объем потребления тепловой энергии объектов которых составляет менее чем 0,2 Гкал | F87: тыс. Гкал | G87: 0 | H87: 0
D88: 11.2 | E88: Определенном расчетным путем (нормативам потребления коммунальных услуг) | F88: тыс. Гкал | G88: =G85-G86 -> 817.536883 | H88: 0
D89: 12 | E89: Нормативы технологических потерь при передаче тепловой энергии, теплоносителя по тепловым сетям | F89: Ккал/ч. мес. | G89: 0 | H89: 0
D90: 13 | E90: Фактический объем потерь при передаче тепловой энергии | F90: тыс. Гкал/год | G90: =19.907144 -> 19.907144 | H90: 0
D91: 13.1 | E91: Плановый объем потерь при передаче тепловой энергии | F91: тыс. Гкал/год | G91: =21.011109 -> 21.011109 | H91: 0 | I91: Информация указывается только едиными теплоснабжающими организациями, теплоснабжающими организациями и теплосетевыми организациями в ценовых зонах теплоснабжения.
D92: 14 | E92: Среднесписочная численность основного производственного персонала | F92: человек | G92: =53.76 -> 53.76 | H92: 0
D93: 15 | E93: Среднесписочная численность административно-управленческого персонала | F93: человек | G93: =(43.98+0.75)*0.98 -> 43.8354 | H93: 0
D94: 16 | E94: Норматив удельного расхода условного топлива при производстве тепловой энергии источниками тепловой энергии, с распределением по источникам тепловой энергии, используемым для осуществления регулируемых видов деятельности | F94: кг у. т./Гкал | G94: 0 | H94: 0 | I94: Указывается норматив удельного расхода условного топлива при производстве тепловой энергии источниками тепловой энергии по всем источникам тепловой энергии в целом.
D95: 16.0
E96: Добавить источник тепловой энергии | I96: В случае наличия нескольких источников тепловой энергии норматив удельного расхода условного топлива по каждому из них указывается в отдельных строках.
D97: 17 | E97: Плановый удельный расход условного топлива при производстве тепловой энергии источниками тепловой энергии с распределением по источникам тепловой энергии | F97: кг усл. топл./Гкал | G97: 0 | H97: 0 | I97: Указывается плановый удельный расход условного топлива при производстве тепловой энергии источниками тепловой энергии по всем источникам тепловой энергии в целом. Информация указывается только едиными теплоснабжающими организациями, теплоснабжающими организациями и теплосетевыми организациями в ценовых зонах теплоснабжения.
D98: 17.0
E99: Добавить источник тепловой энергии | I99: В случае наличия нескольких источников тепловой энергии плановый удельный расход условного топлива по каждому из них указывается в отдельных строках.
D100: 18 | E100: Фактический удельный расход условного топлива при производстве тепловой энергии источниками тепловой энергии с распределением по источникам тепловой энергии | F100: кг усл. топл./Гкал | G100: 0 | H100: 0 | I100: Регулируемыми организациями указывается информация с распределением по источникам тепловой энергии, используемым для осуществления регулируемых видов деятельности.
D101: 18.0
E102: Добавить источник тепловой энергии | I102: В случае наличия нескольких источников тепловой энергии фактический удельный расход условного топлива по каждому из них указывается в отдельных строках.
D103: 19 | E103: Удельный расход электрической энергии на производство (передачу) тепловой энергии на единицу тепловой энергии, отпускаемой потребителям | F103: тыс. кВт.ч/Гкал | G103: 0 | H103: 0 | I103: Регулируемыми организациями указывается информация по договорам, заключенным в рамках осуществления регулируемой деятельности.
D104: 20 | E104: Удельный расход холодной воды на производство (передачу) тепловой энергии на единицу тепловой энергии, отпускаемой потребителям | F104: куб.м/Гкал | G104: 0 | H104: 0 | I104: Регулируемыми организациями указывается информация по договорам, заключенным в рамках осуществления регулируемой деятельности.
D105: 21 | E105: Информация о показателях технико-экономического состояния систем теплоснабжения (за исключением теплопотребляющих установок потребителей тепловой энергии, теплоносителя, а также источников тепловой энергии, функционирующих в режиме комбинированной выработки электрической и тепловой энергии), в т.ч.: | F105: x | G105: https://portal.eias.ru/Portal/DownloadPage.aspx?type=12&guid=796134c8-4409-416e-a9f4-8d180e0df824 | H105: https://portal.eias.ru/Portal/DownloadPage.aspx?type=12&guid=796134c8-4409-416e-a9f4-8d180e0df824 | I105: Указывается ссылка на документ, предварительно загруженный в хранилище файлов ФГИС ЕИАС.
D106: 21.1 | E106: Информация о показателях физического износа объектов теплоснабжения | F106: x | G106: https://portal.eias.ru/Portal/DownloadPage.aspx?type=12&guid=796134c8-4409-416e-a9f4-8d180e0df824 | H106: https://portal.eias.ru/Portal/DownloadPage.aspx?type=12&guid=796134c8-4409-416e-a9f4-8d180e0df824 | I106: Указывается ссылка на документ, предварительно загруженный в хранилище файлов ФГИС ЕИАС.
D107: 21.2 | E107: Информация о показателях энергетической эффективности объектов теплоснабжения | F107: x | G107: https://portal.eias.ru/Portal/DownloadPage.aspx?type=12&guid=796134c8-4409-416e-a9f4-8d180e0df824 | H107: https://portal.eias.ru/Portal/DownloadPage.aspx?type=12&guid=796134c8-4409-416e-a9f4-8d180e0df824 | I107: Указывается ссылка на документ, предварительно загруженный в хранилище файлов ФГИС ЕИАС.
D110: 1 | E110: Единые теплоснабжающие организации размещают информацию, указанную в пунктах 1 – 11.2, 13 – 15, 17 – 21.2 формы.
E111: Теплоснабжающие организации и теплосетевые организации в ценовых зонах теплоснабжения размещают информацию, указанную в пунктах 1 – 8.1, 10, 13 – 15, 17 – 18.1, 21 – 21.2 формы.
G114: =IF(G29-G30 <>G70,"WARNING","") ->  | H114: =IF(H29-H30 <>H70,"WARNING","") -> 

Sheet Форма 1.0.1 | Форма 4.3.2 (hidden)
G1: 4
D5: Форма 1.0.1 Основные параметры раскрываемой информации 1
C8: 22 | D8: Форма 1.0.1
D9: Параметры формы | G9: Описание параметров формы
A10: \ | D10: № п/п | F10: Информация
D11: 1 | E11: 2 | F11: 3 | G11: 4
D12: 1 | E12: Дата заполнения/внесения изменений | F12: =IF(form_up_date="","",form_up_date) -> 29.04.2019 | G12: Указывается календарная дата первичного заполнения или внесения изменений в форму в виде «ДД.ММ.ГГГГ».
D13: 2.1 | E13: Наименование централизованной системы коммунальной инфраструктуры | F13: наименование отсутствует | G13: Указывается наименование централизованной системы холодного водоснабжения/горячего водоснабжения/водоотведения/теплоснабжения, к которой относится размещаемая информация. В случае наличия нескольких централизованных систем коммунальной инфраструктуры, информация по каждой из них указывается в отдельной строке.
D14: 3.1 | E14: Наименование регулируемого вида деятельности | F14: Сбыт. Тепловая энергия | G14: Указывается наименование вида регулируемой деятельности.
D15: 4.1 | E15: Территория оказания услуги по регулируемому виду деятельности | F15: x
D16: =D15&".1" -> 4.1.1 | E16: Субъект РФ | F16: =IF(region_name="","",region_name) -> Ивановская область | G16: Указывается наименование субъекта Российской Федерации
D17: 4.1.1.1 | E17: муниципальный район | F17: Городской округ Иваново | G17: Указывается наименование муниципального района, на территории которого организация оказывает услуги по регулируемому виду деятельности.
D18: 4.1.1.1.1 | E18: муниципальное образование | F18: Городской округ Иваново (24701000) | G18: Указывается наименование и код муниципального района, муниципального образования в соответствии с Общероссийским классификатором территорий муниципальных образований (далее - ОКТМО), входящего в муниципальный район, на территории которого организация оказывает услуги по регулируемому виду деятельности. В случае оказания услуг по регулируемому виду деятельности на территории нескольких муниципальных районов (муниципальных образований) данные по каждому их них указываются в отдельной строке.
C20: 25 | D20: Форма 1.0.1
D21: Параметры формы | G21: Описание параметров формы
A22: \ | D22: № п/п | F22: Информация
D23: 1 | E23: 2 | F23: 3 | G23: 4
D24: 1 | E24: Дата заполнения/внесения изменений | F24: =IF(form_up_date="","",form_up_date) -> 29.04.2019 | G24: Указывается календарная дата первичного заполнения или внесения изменений в форму в виде «ДД.ММ.ГГГГ».
D25: 2.1 | E25: Наименование централизованной системы коммунальной инфраструктуры | F25: наименование отсутствует | G25: Указывается наименование централизованной системы холодного водоснабжения/горячего водоснабжения/водоотведения/теплоснабжения, к которой относится размещаемая информация. В случае наличия нескольких централизованных систем коммунальной инфраструктуры, информация по каждой из них указывается в отдельной строке.
D26: 3.1 | E26: Наименование регулируемого вида деятельности | F26: Сбыт. Теплоноситель | G26: Указывается наименование вида регулируемой деятельности.
D27: 4.1 | E27: Территория оказания услуги по регулируемому виду деятельности | F27: x
D28: =D27&".1" -> 4.1.1 | E28: Субъект РФ | F28: =IF(region_name="","",region_name) -> Ивановская область | G28: Указывается наименование субъекта Российской Федерации
D29: 4.1.1.1 | E29: муниципальный район | F29: Городской округ Иваново | G29: Указывается наименование муниципального района, на территории которого организация оказывает услуги по регулируемому виду деятельности.
D30: 4.1.1.1.1 | E30: муниципальное образование | F30: Городской округ Иваново (24701000) | G30: Указывается наименование и код муниципального района, муниципального образования в соответствии с Общероссийским классификатором территорий муниципальных образований (далее - ОКТМО), входящего в муниципальный район, на территории которого организация оказывает услуги по регулируемому виду деятельности. В случае оказания услуг по регулируемому виду деятельности на территории нескольких муниципальных районов (муниципальных образований) данные по каждому их них указываются в отдельной строке.
E32: 1 Информация по данной форме публикуется при раскрытии информации по каждой из форм.

Sheet Форма 4.3.2 (hidden)
D5: Информация о расходах на капитальный и текущий ремонт основных производственных средств
D7: Параметры формы | S7: Описание параметров формы
D8: № п/п | E8: № п/п | G8: Наименование параметра | H8: № п/п | J8: Способ приобретения | K8: Реквизиты договора | L8: № п/п | N8: Наименование товара/услуги | O8: Объем приобретенных товаров, услуг | P8: Единица измерения объема | Q8: Стоимость, тыс. руб. | R8: Доля расходов, % (от суммы расходов по указанной статье)
D9: 1 | F9: 2 | G9: 3 | I9: 4 | J9: 5 | K9: 6 | M9: 7 | N9: 8 | O9: 9 | P9: 10 | Q9: 11 | R9: 12 | S9: 13
D11: 0
A12: 22 | D12: 1 | E12: Вид деятельности: - Сбыт. Тепловая энергия Территория оказания услуг: - без дифференциации Централизованная система теплоснабжения: - наименование отсутствует | AG12: NOTSHOW | AH12: 3
E13: Информация об объемах товаров и услуг, их стоимости и способах приобретения у организаций, в том числе: | Q13: =SUMIF(T14:T15,"i",Q14:Q15) -> 0 | S13: Указывается сумма стоимости приобретения товаров и услуг у организаций, сумма оплаты услуг которых превышает 20% суммы расходов на капитальный и текущий ремонт основных производственных средства | T13: i | U13: 1 | V13: =INDEX(List01_flag_index_1,1,MATCH(A12,List01_NumberColumns,0)) -> отсутствует
F14: 0
T16: i | U16: 2 | V16: =INDEX(List01_flag_index_2,1,MATCH(A12,List01_NumberColumns,0)) -> отсутствует
A19: 25 | D19: 2 | E19: Вид деятельности: - Сбыт. Теплоноситель Территория оказания услуг: - без дифференциации Централизованная система теплоснабжения: - наименование отсутствует | AG19: NOTSHOW | AH19: 3
E20: Информация об объемах товаров и услуг, их стоимости и способах приобретения у организаций, в том числе: | Q20: =SUMIF(T21:T22,"i",Q21:Q22) -> 0 | S20: Указывается сумма стоимости приобретения товаров и услуг у организаций, сумма оплаты услуг которых превышает 20% суммы расходов на капитальный и текущий ремонт основных производственных средства | T20: i | U20: 1 | V20: =INDEX(List01_flag_index_1,1,MATCH(A19,List01_NumberColumns,0)) -> отсутствует
F21: 0
T23: i | U23: 2 | V23: =INDEX(List01_flag_index_2,1,MATCH(A19,List01_NumberColumns,0)) -> отсутствует

Sheet Форма 4.4
G1: 4 | I1: 5 | K1: 5
D3: Информация об основных потребительских характеристиках регулируемых товаров и услуг регулируемой организации и их соответствии установленным требованиям1
G6: 22 | I6: 25
D7: Параметры формы | K7: Описание параметров формы
D8: № п/п | E8: Информация, подлежащая раскрытию | F8: Единица измерения | G8: Вид деятельности: - Сбыт. Тепловая энергия Территория оказания услуг: - без дифференциации Централизованная система теплоснабжения: - наименование отсутствует | I8: Вид деятельности: - Сбыт. Теплоноситель Территория оказания услуг: - без дифференциации Централизованная система теплоснабжения: - наименование отсутствует
G9: Информация | H9: Ссылка на документ | I9: Информация | J9: Ссылка на документ
D10: 1 | E10: 2 | F10: 3 | G10: =G1&".1" -> 4.1 | H10: =G1&".2" -> 4.2 | I10: =I1&".1" -> 5.1 | J10: =I1&".2" -> 5.2
D11: 1 | E11: Количество аварий на тепловых сетях | F11: ед. на км | G11: =27/35.2 -> 0.7670454545 | I11: 0 | K11: Указывается количество любых нарушений на тепловых сетях в расчете на один километр трубопровода.
D12: 2 | E12: Количество аварий на источниках тепловой энергии | F12: ед. на источник | G12: 0 | I12: 0 | K12: Указывается количество любых нарушений на источниках тепловой энергии
D13: 3 | E13: Показатели надежности и качества, установленные в соответствии с законодательством Российской Федерации | F13: х | G13: Не утверждены | I13: Не утверждены | K13: В колонке «Ссылка на документ» указывается материал в виде ссылки на документ, содержащий информацию об установленных показателях надежности и качества, предварительно загруженный в хранилище данных ФГИС ЕИАС. В случае, если показатели надежности и качества не утверждены в колонке «Информация» указывается «Не утверждены». Информация в данной строке не указывается теплоснабжающими организациями, теплосетевыми организациями в ценовых зонах теплоснабжения.
D14: 4 | E14: Сведения о несоблюдении значений параметров качества теплоснабжения и (или) параметров, отражающих допустимые перерывы в теплоснабжении | F14: х | G14: х | H14: х | I14: х | J14: х | K14: Информация в строках 4.1 - 4.3 указывается в случае, если организация имеет статус единой теплоснабжающей организации.
D15: 4.1 | E15: количество составленных актов, подтверждающих факт превышения разрешенных отклонений значений параметров, | F15: шт.
D16: 4.2 | E16: средняя продолжительность устранения превышения разрешенных отклонений значений параметров | F16: дн.
D17: 4.3 | E17: совокупная величина снижения размера платы за тепловую энергию (мощность) потребителям в связи с превышением разрешенных отклонений значений параметров | F17: руб.
D18: 5 | E18: Доля числа исполненных в срок договоров о подключении | F18: % | G18: 0 | I18: 0 | K18: Указывается процент общего количества заключенных договоров о подключении (технологическом присоединении). Информация в данной строке не указывается теплоснабжающими организациями, теплосетевыми организациями в ценовых зонах теплоснабжения.
D19: 6 | E19: Средняя продолжительность рассмотрения заявлений о подключении | F19: дн. | G19: 0 | I19: 0 | K19: Информация в данной строке не указывается теплоснабжающими организациями, теплосетевыми организациями в ценовых зонах теплоснабжения.
D21: 1 | E21: Едиными теплоснабжающими организациями, теплоснабжающими и теплосетевыми организациями в ценовых зонах теплоснабжения указывается информация об основных потребительских
E22: характеристиках товаров и услуг, поставляемых и оказываемых этими организациями в ценовых зонах теплоснабжения.

Sheet Форма 1.0.1 | Форма 4.5 (hidden)
G1: 4
D5: Форма 1.0.1 Основные параметры раскрываемой информации 1
C8: 22 | D8: Форма 1.0.1
D9: Параметры формы | G9: Описание параметров формы
A10: \ | D10: № п/п | F10: Информация
D11: 1 | E11: 2 | F11: 3 | G11: 4
D12: 1 | E12: Дата заполнения/внесения изменений | F12: =IF(form_up_date="","",form_up_date) -> 29.04.2019 | G12: Указывается календарная дата первичного заполнения или внесения изменений в форму в виде «ДД.ММ.ГГГГ».
D13: 2.1 | E13: Наименование централизованной системы коммунальной инфраструктуры | F13: наименование отсутствует | G13: Указывается наименование централизованной системы холодного водоснабжения/горячего водоснабжения/водоотведения/теплоснабжения, к которой относится размещаемая информация. В случае наличия нескольких централизованных систем коммунальной инфраструктуры, информация по каждой из них указывается в отдельной строке.
D14: 3.1 | E14: Наименование регулируемого вида деятельности | F14: Сбыт. Тепловая энергия | G14: Указывается наименование вида регулируемой деятельности.
D15: 4.1 | E15: Территория оказания услуги по регулируемому виду деятельности | F15: x
D16: =D15&".1" -> 4.1.1 | E16: Субъект РФ | F16: =IF(region_name="","",region_name) -> Ивановская область | G16: Указывается наименование субъекта Российской Федерации
D17: 4.1.1.1 | E17: муниципальный район | F17: Городской округ Иваново | G17: Указывается наименование муниципального района, на территории которого организация оказывает услуги по регулируемому виду деятельности.
D18: 4.1.1.1.1 | E18: муниципальное образование | F18: Городской округ Иваново (24701000) | G18: Указывается наименование и код муниципального района, муниципального образования в соответствии с Общероссийским классификатором территорий муниципальных образований (далее - ОКТМО), входящего в муниципальный район, на территории которого организация оказывает услуги по регулируемому виду деятельности. В случае оказания услуг по регулируемому виду деятельности на территории нескольких муниципальных районов (муниципальных образований) данные по каждому их них указываются в отдельной строке.
C20: 25 | D20: Форма 1.0.1
D21: Параметры формы | G21: Описание параметров формы
A22: \ | D22: № п/п | F22: Информация
D23: 1 | E23: 2 | F23: 3 | G23: 4
D24: 1 | E24: Дата заполнения/внесения изменений | F24: =IF(form_up_date="","",form_up_date) -> 29.04.2019 | G24: Указывается календарная дата первичного заполнения или внесения изменений в форму в виде «ДД.ММ.ГГГГ».
D25: 2.1 | E25: Наименование централизованной системы коммунальной инфраструктуры | F25: наименование отсутствует | G25: Указывается наименование централизованной системы холодного водоснабжения/горячего водоснабжения/водоотведения/теплоснабжения, к которой относится размещаемая информация. В случае наличия нескольких централизованных систем коммунальной инфраструктуры, информация по каждой из них указывается в отдельной строке.
D26: 3.1 | E26: Наименование регулируемого вида деятельности | F26: Сбыт. Теплоноситель | G26: Указывается наименование вида регулируемой деятельности.
D27: 4.1 | E27: Территория оказания услуги по регулируемому виду деятельности | F27: x
D28: =D27&".1" -> 4.1.1 | E28: Субъект РФ | F28: =IF(region_name="","",region_name) -> Ивановская область | G28: Указывается наименование субъекта Российской Федерации
D29: 4.1.1.1 | E29: муниципальный район | F29: Городской округ Иваново | G29: Указывается наименование муниципального района, на территории которого организация оказывает услуги по регулируемому виду деятельности.
D30: 4.1.1.1.1 | E30: муниципальное образование | F30: Городской округ Иваново (24701000) | G30: Указывается наименование и код муниципального района, муниципального образования в соответствии с Общероссийским классификатором территорий муниципальных образований (далее - ОКТМО), входящего в муниципальный район, на территории которого организация оказывает услуги по регулируемому виду деятельности. В случае оказания услуг по регулируемому виду деятельности на территории нескольких муниципальных районов (муниципальных образований) данные по каждому их них указываются в отдельной строке.
E32: 1 Информация по данной форме публикуется при раскрытии информации по каждой из форм.

Sheet Форма 4.5 (hidden)
F5: Информация об инвестиционных программах1
F7: Параметры формы | M7: Описание параметров формы
F8: № п/п | G8: Наименование параметра | H8: Единица измерения
I9: Инвестиционная программа в целом | J9: Мероприятие2 | K9: Добавить мероприятие
F10: 1 | G10: 2 | H10: 3 | I10: 4 | J10: 4.0
F11: 1 | G11: Наименование инвестиционной программы/мероприятия | H11: x
F12: 2 | G12: Дата утверждения инвестиционной программы | H12: x | J12: x | M12: Дата утверждения инвестиционной программы указывается в виде «ДД.ММ.ГГГГ».
F13: 2.1 | G13: Дата изменения инвестиционной программы | H13: x | J13: x | M13: Дата изменения инвестиционной программы указывается (в случае наличия изменения) в виде «ДД.ММ.ГГГГ».
F14: 3 | G14: Цель инвестиционной программы | H14: x | J14: x | M14: Цель инвестиционной программы определяется из перечня: Автоматизация (с уменьшением штата); Уменьшение удельных затрат (повышение коэффициента полезного действия); Уменьшение издержек на производство; Снижение аварийности; Прочее Возможен выбор нескольких пунктов.
F15: 4 | G15: Наименование уполномоченного органа, утвердившего программу | H15: x | J15: x | M15: Указывается уполномоченный в соответствии с законодательством Российской Федерации орган власти, утвердивший инвестиционную программу.
F16: 5 | G16: Наименование органа местного самоуправления, согласовавшего инвестиционную программу | H16: x | J16: x
F17: 6 | G17: Срок начала реализации инвестиционной программы/мероприятия | H17: x | M17: Срок начала реализации инвестиционной программы/мероприятия указывается в виде «ДД.ММ.ГГГГ».
F18: 7 | G18: Срок окончания реализации инвестиционной программы/мероприятия | H18: x | M18: Срок окончания реализации инвестиционной программы/мероприятия указывается в виде «ДД.ММ.ГГГГ».
F19: 8 | G19: Потребность в финансовых средствах, необходимых для реализации инвестиционной программы, в том числе с разбивкой по годам, мероприятиям и источникам финансирования инвестиционной программы: | H19: тыс. руб. | I19: =SUMIF(List06_flag_year,"y",I20:I26) -> 0 | J19: =SUMIF(List06_flag_year,"y",J20:J26) -> 0 | M19: Указывается суммарная потребность в финансовых средствах, необходимых для реализации инвестиционной программы, по всем источникам финансирования.
B20: 8.0 | F20: =B20 -> 8.0 | H20: тыс. руб. | I20: =SUM(I21:I22) -> 0 | J20: =SUM(J21:J22) -> 0 | K20: y | M20: Год реализации инвестиционной программы/мероприятия должен содержаться в сроке реализации инвестиционной программы, определенном в пунктах 6 и 7 данной формы. В случае реализации инвестиционной программы/мероприятия в течение нескольких лет информация по каждому году указывается в отдельных строках.
C21: 1 | F21: =B20&"."&C21 -> 8.0.1 | H21: тыс. руб. | K21: i | M21: Вид источника финансирования определяется из перечня: Кредиты банков; Кредиты иностранных банков; Заемные средства др. организаций; Федеральный бюджет; Бюджет субъекта Российской Федерации; Бюджет муниципального образования; Средства внебюджетных фондов; Прибыль, направленная на инвестиции; Амортизация; Инвестиционная надбавка к тарифу; Плата за подключение (технологическое присоединение); Прочие средства. В случае наличия нескольких источников финансирования информация по каждому из них указывается в отдельных строках.
G22: Добавить источники
B23: 8.1 | F23: =B23 -> 8.1 | H23: тыс. руб. | I23: =SUM(I24:I25) -> 0 | J23: =SUM(J24:J25) -> 0 | K23: y | M23: Год реализации инвестиционной программы/мероприятия должен содержаться в сроке реализации инвестиционной программы, определенном в пунктах 6 и 7 данной формы. В случае реализации инвестиционной программы/мероприятия в течение нескольких лет информация по каждому году указывается в отдельных строках.
C24: 1 | F24: =B23&"."&C24 -> 8.1.1 | H24: тыс. руб. | K24: i | M24: Вид источника финансирования определяется из перечня: Кредиты банков; Кредиты иностранных банков; Заемные средства др. организаций; Федеральный бюджет; Бюджет субъекта Российской Федерации; Бюджет муниципального образования; Средства внебюджетных фондов; Прибыль, направленная на инвестиции; Амортизация; Инвестиционная надбавка к тарифу; Плата за подключение (технологическое присоединение); Прочие средства. В случае наличия нескольких источников финансирования информация по каждому из них указывается в отдельных строках.
G25: Добавить источники
G26: Добавить год
F27: 9 | G27: Целевые показатели инвестиционной программы | H27: x | I27: x | J27: x
F28: 9.1 | G28: Срок окупаемости | H28: x | I28: x | J28: x
F29: 9.1.1 | G29: Факт | H29: лет
F30: 9.1.2 | G30: План | H30: лет
F31: 9.2 | G31: Перебои в снабжении потребителей | H31: x | I31: x | J31: x
F32: 9.2.1 | G32: Факт | H32: час./чел. | M32: Указывается фактическое значение отношения суммы произведений продолжительности отключений и количества пострадавших потребителей от каждого из этих отключений к количеству потребителей, проживающих в домах, в которых проходили отключения в отчетном периоде.
F33: 9.2.2 | G33: План | H33: час./чел. | M33: Указывается плановое значение отношения суммы произведений продолжительности отключений и количества пострадавших потребителей от каждого из этих отключений к количеству потребителей, проживающих в домах, в которых проходили отключения в отчетном периоде.
F34: 9.3 | G34: Продолжительность (бесперебойность) поставки товаров и услуг | H34: x | I34: x | J34: x
F35: 9.3.1 | G35: Факт | H35: час./день | M35: Указывается фактическое значение отношения количества часов предоставления услуг к количеству календарных дней в отчетном периоде.
F36: 9.3.2 | G36: План | H36: час./день | M36: Указывается плановое значение отношения количества часов предоставления услуг к количеству календарных дней в отчетном периоде.
F37: 9.4 | G37: Доля потерь и неучтенного потребления | H37: x | I37: x | J37: x
F38: 9.4.1 | G38: Факт | H38: % | M38: Указывается фактическое значение доли потерь и неучтенного тепловой энергии в общем объеме тепла, поданной в тепловую в отчетном периоде.
F39: 9.4.2 | G39: План | H39: % | M39: Указывается плановое значение доли потерь и неучтенного тепловой энергии в общем объеме тепла, поданной в тепловую в отчетном периоде.
F40: 9.5 | G40: Коэффициент потерь | H40: x | I40: x | J40: x
F41: 9.5.1 | G41: Факт | H41: Гкал/км | M41: Указывается фактическое значение коэффициента потерь тепловой энергии.
F42: 9.5.2 | G42: План | H42: Гкал/км | M42: Указывается плановое значение коэффициента потерь тепловой энергии.
F43: 9.6 | G43: Износ систем коммунальной инфраструктуры | H43: x | I43: x | J43: x
F44: 9.6.1 | G44: Факт | H44: %
F45: 9.6.2 | G45: План | H45: %
F46: 9.7 | G46: Износ оборудования производства (котлы) | H46: x | I46: x | J46: x
F47: 9.7.1 | G47: Факт | H47: %
F48: 9.7.2 | G48: План | H48: %
F49: 9.8 | G49: Износ оборудования передачи тепловой энергии (сети) | H49: x | I49: x | J49: x
F50: 9.8.1 | G50: Факт | H50: %
F51: 9.8.2 | G51: План | H51: %
F52: 9.9 | G52: Удельный вес сетей, нуждающихся в замене | H52: x | I52: x | J52: x
F53: 9.9.1 | G53: Факт | H53: %
F54: 9.9.2 | G54: План | H54: %
F55: 9.10 | G55: Обеспеченность потребления товаров и услуг приборами учета | H55: x | I55: x | J55: x
F56: 9.10.1 | G56: Факт | H56: %
F57: 9.10.2 | G57: План | H57: %
F58: 9.11 | G58: Расход топлива | H58: x | I58: x | J58: x
F59: 9.11.1 | G59: Факт | H59: т усл.топл/Гкал
F60: 9.11.2 | G60: План | H60: т усл.топл/Гкал
F61: 9.12 | G61: Расход электроэнергии на выработку | H61: x | I61: x | J61: x
F62: 9.12.1 | G62: Факт | H62: кВт.ч/Гкал
F63: 9.12.2 | G63: План | H63: кВт.ч/Гкал
F64: 9.13 | G64: Расход электроэнергии на передачу | H64: x | I64: x | J64: x
F65: 9.13.1 | G65: Факт | H65: кВт.ч/Гкал
F66: 9.13.2 | G66: План | H66: кВт.ч/Гкал
F67: 9.14 | G67: Количество аварий (с учетом котельных) | H67: x | I67: x | J67: x
F68: 9.14.1 | G68: Факт | H68: ед. | M68: Указывается фактическое значение количества аварий (с учетом котельных).
F69: 9.14.2 | G69: План | H69: ед. | M69: Указывается плановое значение количества аварий (с учетом котельных).
F70: 9.15 | G70: Количество аварий на тепловых сетях | H70: x | I70: x | J70: x
F71: 9.15.1 | G71: Факт | H71: ед./км | M71: Указывается фактическое значение отношения количества аварий на тепловых сетях к протяженности сетей в отчетном периоде.
F72: 9.15.2 | G72: План | H72: ед./км | M72: Указывается плановое значение отношения количества аварий на тепловых сетях к протяженности сетей в отчетном периоде.
F73: 9.16 | G73: Производительность труда | H73: x | I73: x | J73: x | M73: В случае наличия дополнительных целевых показателей инвестиционной программы информация по ним указывается в отдельных строках.
F74: 9.16.1 | G74: Факт | H74: тыс. руб./чел. | M74: Указывается фактическое значение отношение фонда оплаты труда к численности всех рабочих основного вида деятельности организации. В число рабочих основного вида деятельности включаются рабочие, занятые на производственных процессах по тепловым сетям.
F75: 9.16.2 | G75: План | H75: тыс. руб./чел. | M75: Указывается плановое значение отношение фонда оплаты труда к численности всех рабочих основного вида деятельности организации. В число рабочих основного вида деятельности включаются рабочие, занятые на производственных процессах по тепловым сетям.
B76: 9.16 | F76: =B76 -> 9.16 | I76: x | J76: x
F77: =B76&".1" -> 9.16.1 | G77: Факт | H77: =IF(H76="","x",H76) -> x
F78: =B76&".2" -> 9.16.2 | G78: План | H78: =IF(H76="","x",H76) -> x
G79: Добавить показатель
B80: print | F80: 10 | G80: Использование инвестиционных средств за отчетный период | H80: x | I80: x | J80: x
B81: 10.0 | F81: =B81 -> 10.0 | G81: Использовано инвестиционных средств всего в отчетном периоде, в том числе: | H81: тыс. руб. | I81: =SUM(I82:I85) -> 0 | J81: =SUM(J82:J85) -> 0 | M81: Указывается сумма использованных инвестиционных средства по всем источникам финансирования в отчетном периоде.
F82: =B81&".1" -> 10.0.1 | G82: I квартал | H82: тыс. руб. | I82: =SUMIF($G$86:$G$96,$G82,I$86:I$96) -> 0 | J82: 0 | M82: Указывается сумма использованных инвестиционных средств в I квартале отчетного периода по всем источникам финансирования.
F83: =B81&".2" -> 10.0.2 | G83: II квартал | H83: тыс. руб. | I83: 0 | J83: 0 | M83: Указывается сумма использованных инвестиционных средств в II квартале отчетного периода по всем источникам финансирования.
F84: =B81&".3" -> 10.0.3 | G84: III квартал | H84: тыс. руб. | I84: 0 | J84: 0 | M84: Указывается сумма использованных инвестиционных средств в III квартале отчетного периода по всем источникам финансирования.
F85: =B81&".4" -> 10.0.4 | G85: IV квартал | H85: тыс. руб. | I85: 0 | J85: 0 | M85: Указывается сумма использованных инвестиционных средств в IV квартале отчетного периода по всем источникам финансирования.
B86: 10.0 | F86: =B86 -> 10.0 | H86: тыс. руб. | I86: =SUM(I87:I90) -> 0 | J86: =SUM(J87:J90) -> 0 | K86: =G86 -> 0 | M86: Вид источника финансирования определяется из перечня: Кредиты банков; Кредиты иностранных банков; Заемные средства др. организаций; Федеральный бюджет; Бюджет субъекта Российской Федерации; Бюджет муниципального образования; Средства внебюджетных фондов; Прибыль, направленная на инвестиции; Амортизация; Инвестиционная надбавка к тарифу; Плата за подключение (технологическое присоединение); Прочие средства. В случае наличия нескольких источников финансирования информация по каждому из них указывается в отдельных строках.
F87: =B86&".1" -> 10.0.1 | G87: I квартал | H87: тыс. руб.
F88: =B86&".2" -> 10.0.2 | G88: II квартал | H88: тыс. руб.
F89: =B86&".3" -> 10.0.3 | G89: III квартал | H89: тыс. руб.
F90: =B86&".4" -> 10.0.4 | G90: IV квартал | H90: тыс. руб.
B91: 10.1 | F91: =B91 -> 10.1 | H91: тыс. руб. | I91: =SUM(I92:I95) -> 0 | J91: =SUM(J92:J95) -> 0 | K91: =G91 -> 0 | M91: Вид источника финансирования определяется из перечня: Кредиты банков; Кредиты иностранных банков; Заемные средства др. организаций; Федеральный бюджет; Бюджет субъекта Российской Федерации; Бюджет муниципального образования; Средства внебюджетных фондов; Прибыль, направленная на инвестиции; Амортизация; Инвестиционная надбавка к тарифу; Плата за подключение (технологическое присоединение); Прочие средства. В случае наличия нескольких источников финансирования информация по каждому из них указывается в отдельных строках.
F92: =B91&".1" -> 10.1.1 | G92: I квартал | H92: тыс. руб.
F93: =B91&".2" -> 10.1.2 | G93: II квартал | H93: тыс. руб.
F94: =B91&".3" -> 10.1.3 | G94: III квартал | H94: тыс. руб.
F95: =B91&".4" -> 10.1.4 | G95: IV квартал | H95: тыс. руб.
G96: Добавить источники
F98: 1 | G98: Информация по данной форме размещается в случае, если организация выполняет или планирует выполнение инвестиционной программы в отчетном периоде.
G99: Единой теплоснабжающей организацией, теплоснабжающей организацией и теплосетевой организацией в ценовых зонах теплоснабжения раскрывается информация об инвестиционных программах разрабатываемых и утверждаемых в отношении деятельности, при осуществлении которой расчеты за товары (услуги) в сфере теплоснабжения осуществляются по регулируемым ценам (тарифам) (за исключением деятельности по подключению (технологическому присоединению) к системе теплоснабжения).
F100: 2 | G100: В случае выполнения нескольких мероприятий информация по каждому из них указывается в отдельной колонке

Sheet Форма 1.0.1 | Форма 4.9 (hidden)
G1: 4
D5: Форма 1.0.1 Основные параметры раскрываемой информации 1
C8: 22 | D8: Форма 1.0.1
D9: Параметры формы | G9: Описание параметров формы
A10: \ | D10: № п/п | F10: Информация
D11: 1 | E11: 2 | F11: 3 | G11: 4
D12: 1 | E12: Дата заполнения/внесения изменений | F12: =IF(form_up_date="","",form_up_date) -> 29.04.2019 | G12: Указывается календарная дата первичного заполнения или внесения изменений в форму в виде «ДД.ММ.ГГГГ».
D13: 2.1 | E13: Наименование централизованной системы коммунальной инфраструктуры | F13: наименование отсутствует | G13: Указывается наименование централизованной системы холодного водоснабжения/горячего водоснабжения/водоотведения/теплоснабжения, к которой относится размещаемая информация. В случае наличия нескольких централизованных систем коммунальной инфраструктуры, информация по каждой из них указывается в отдельной строке.
D14: 3.1 | E14: Наименование регулируемого вида деятельности | F14: Сбыт. Тепловая энергия | G14: Указывается наименование вида регулируемой деятельности.
D15: 4.1 | E15: Территория оказания услуги по регулируемому виду деятельности | F15: x
D16: =D15&".1" -> 4.1.1 | E16: Субъект РФ | F16: =IF(region_name="","",region_name) -> Ивановская область | G16: Указывается наименование субъекта Российской Федерации
D17: 4.1.1.1 | E17: муниципальный район | F17: Городской округ Иваново | G17: Указывается наименование муниципального района, на территории которого организация оказывает услуги по регулируемому виду деятельности.
D18: 4.1.1.1.1 | E18: муниципальное образование | F18: Городской округ Иваново (24701000) | G18: Указывается наименование и код муниципального района, муниципального образования в соответствии с Общероссийским классификатором территорий муниципальных образований (далее - ОКТМО), входящего в муниципальный район, на территории которого организация оказывает услуги по регулируемому виду деятельности. В случае оказания услуг по регулируемому виду деятельности на территории нескольких муниципальных районов (муниципальных образований) данные по каждому их них указываются в отдельной строке.
C20: 25 | D20: Форма 1.0.1
D21: Параметры формы | G21: Описание параметров формы
A22: \ | D22: № п/п | F22: Информация
D23: 1 | E23: 2 | F23: 3 | G23: 4
D24: 1 | E24: Дата заполнения/внесения изменений | F24: =IF(form_up_date="","",form_up_date) -> 29.04.2019 | G24: Указывается календарная дата первичного заполнения или внесения изменений в форму в виде «ДД.ММ.ГГГГ».
D25: 2.1 | E25: Наименование централизованной системы коммунальной инфраструктуры | F25: наименование отсутствует | G25: Указывается наименование централизованной системы холодного водоснабжения/горячего водоснабжения/водоотведения/теплоснабжения, к которой относится размещаемая информация. В случае наличия нескольких централизованных систем коммунальной инфраструктуры, информация по каждой из них указывается в отдельной строке.
D26: 3.1 | E26: Наименование регулируемого вида деятельности | F26: Сбыт. Теплоноситель | G26: Указывается наименование вида регулируемой деятельности.
D27: 4.1 | E27: Территория оказания услуги по регулируемому виду деятельности | F27: x
D28: =D27&".1" -> 4.1.1 | E28: Субъект РФ | F28: =IF(region_name="","",region_name) -> Ивановская область | G28: Указывается наименование субъекта Российской Федерации
D29: 4.1.1.1 | E29: муниципальный район | F29: Городской округ Иваново | G29: Указывается наименование муниципального района, на территории которого организация оказывает услуги по регулируемому виду деятельности.
D30: 4.1.1.1.1 | E30: муниципальное образование | F30: Городской округ Иваново (24701000) | G30: Указывается наименование и код муниципального района, муниципального образования в соответствии с Общероссийским классификатором территорий муниципальных образований (далее - ОКТМО), входящего в муниципальный район, на территории которого организация оказывает услуги по регулируемому виду деятельности. В случае оказания услуг по регулируемому виду деятельности на территории нескольких муниципальных районов (муниципальных образований) данные по каждому их них указываются в отдельной строке.
E32: 1 Информация по данной форме публикуется при раскрытии информации по каждой из форм.

Sheet Форма 4.9 (hidden)
D5: Информация о способах приобретения, стоимости и объемах товаров, необходимых для производства товаров и (или) оказания услуг
D7: Параметры формы | H7: Описание параметров формы
D8: № п/п | E8: Наименование параметра | F8: Информация | G8: Ссылка на документ
D9: 1 | E9: 2 | F9: 3 | G9: 4 | H9: 5
D10: 1 | E10: Сведения о правовых актах, регламентирующих правила закупки (положение о закупках) в организации | H10: В колонке «Информация» указывается описательная информация, характеризующая размещаемые данные. В колонке «Ссылка на документ» указывается либо ссылка на документ, предварительно загруженный в хранилище файлов ФГИС ЕИАС, либо ссылка на официальный сайт в сети «Интернет», на котором размещена информация.
D11: 2 | E11: Сведения о месте размещения положения о закупках организации
D12: 3 | E12: Сведения о планировании закупочных процедур
D13: 4 | E13: Сведения о результатах проведения закупочных процедур
E14: Добавить сведения | H14: В случае наличия дополнительных сведений о способах приобретения, стоимости и объемах товаров, необходимых для производства товаров и (или) оказания услуг организацией, информация по ним указывается в отдельных строках.

Sheet Форма 1.0.2 (hidden)
D5: Форма 1.0.2 Информация о публикации в печатных изданиях 2
D8: Параметры формы | K8: Описание параметров формы
D9: № п/п | E9: Форма публикации | G9: Официальное печатное издание
E10: Номер | F10: Наименование | G10: Наименование | H10: Номер | I10: Дата выпуска | J10: Ссылка на документ
D11: 1 | E11: 2 | F11: 3 | G11: 4 | H11: 5 | I11: 6 | J11: 7 | K11: 8
A12: 3 | D12: 1 | K12: В колонке «Дата выпуска» дата выпуска печатного издания указывается в виде «ДД.ММ.ГГГГ». В колонке «Ссылка на документ» указывается ссылка на отсканированную копию печатного издания, предварительно загруженную в хранилище федеральной государственной информационной системы «Единая информационно-аналитическая система «Федеральный орган регулирования - региональные органы регулирования - субъекты регулирования» (далее – ФГИС ЕИАС), с опубликованной информацией. В случае публикации информации в нескольких печатных изданиях информация по каждому из них указывается в отдельной строке. | M12: =IF(ISERROR(INDEX(kind_of_nameforms,MATCH(E12,kind_of_forms,0),1)),"",INDEX(kind_of_nameforms,MATCH(E12,kind_of_forms,0),1)) -> 
E13: Добавить строку
E15: 2 В данной форме публикуется информация по каждой из форм раскрытия, данные в которой относятся к муниципальному образованию, в котором отсутствует доступ в информационно-телекоммуникационную сеть «Интернет» (далее – сеть «Интернет»).

Sheet Сведения об изменении (hidden)
D7: Сведения об изменениях в первоначально опубликованной информации
D10: № п/п | E10: Сведения
D11: 1 | E11: 2
D12: 0
D13: 1
E14: Добавить строку

Sheet Комментарии
D7: Комментарии
D8: =IF(org=0,"Не определено",org) -> АО "ИГТСК"
D10: № п/п | E10: Комментарий
D11: 1 | E11: 2
D12: 0
E13: Добавить

Sheet modReestr (hidden)

Sheet modList13 (hidden)

Sheet modList07 (hidden)

Sheet AllSheetsInThisWorkbook (hidden)
A1: Расчетные листы | B1: Скрытые листы
A2: Инструкция | B2: modProv
A3: Лог обновления | B3: modReestr
A4: Титульный | B4: modList13
A5: Территории | B5: modList07
A6: Дифференциация | B6: AllSheetsInThisWorkbook
A7: Форма 1.0.1 | Форма 4.3.1 | B7: modCheckCyan
A8: Форма 4.3.1 | B8: modInfo
A9: Форма 4.3.2 | B9: TEHSHEET
A10: Форма 4.4 | B10: modfrmSelectData
A11: Форма 4.5 | B11: modList06
A12: Форма 4.9 | B12: modList01
A13: Форма 1.0.2 | B13: modList05
A14: Сведения об изменении | B14: modList08
A15: Комментарии | B15: et_union_hor
A16: Проверка | B16: et_union_vert
B17: modList00
B18: modList02
B19: modList03
B20: modList04
B21: modList09
B22: modHTTP
B23: modfrmRegion
B24: MR_LIST
B25: REESTR_VT
B26: REESTR_VED
B27: modfrmReestrObj
B28: DataOrg
B29: modfrmReestr
B30: modUpdTemplMain
B31: REESTR_ORG
B32: modClassifierValidate
B33: modHyp
B34: modfrmDateChoose
B35: modComm
B36: modThisWorkbook
B37: REESTR_MO
B38: REESTR_MO_FILTER
B39: modfrmReestrMR
B40: modServiceModule
B41: modfrmCheckUpdates
B42: REESTR_DS
B43: REESTR_CHS
B44: REESTR_LINK

Sheet modCheckCyan (hidden)
A1: =IF(#REF!="",1,0) -> 
A2: =IF(#REF!="",1,0) -> 
A3: =IF(#REF!="",1,0) -> 
A4: =IF('Форма 4.9'!$F$10="",1,0) -> 1
A5: =IF('Форма 4.9'!$G$10="",1,0) -> 1
A6: =IF('Форма 4.9'!$F$11="",1,0) -> 1
A7: =IF('Форма 4.9'!$G$11="",1,0) -> 1
A8: =IF('Форма 4.9'!$F$12="",1,0) -> 1
A9: =IF('Форма 4.9'!$G$12="",1,0) -> 1
A10: =IF('Форма 4.9'!$F$13="",1,0) -> 1
A11: =IF('Форма 4.9'!$G$13="",1,0) -> 1
A12: =IF('Форма 1.0.2'!$E$12="",1,0) -> 1
A13: =IF('Форма 1.0.2'!$F$12="",1,0) -> 1
A14: =IF('Форма 1.0.2'!$G$12="",1,0) -> 1
A15: =IF('Форма 1.0.2'!$H$12="",1,0) -> 1
A16: =IF('Форма 1.0.2'!$I$12="",1,0) -> 1
A17: =IF('Форма 1.0.2'!$J$12="",1,0) -> 1
A18: =IF('Сведения об изменении'!$E$13="",1,0) -> 1
A19: =IF(#REF!="",1,0) -> 
A20: =IF(#REF!="",1,0) -> 
A21: =IF(#REF!="",1,0) -> 
A22: =IF(#REF!="",1,0) -> 
A23: =IF('Форма 4.3.1'!$G$29="",1,0) -> 0
A24: =IF('Форма 4.3.1'!$H$29="",1,0) -> 0
A25: =IF('Форма 4.3.1'!$G$31="",1,0) -> 0
A26: =IF('Форма 4.3.1'!$H$31="",1,0) -> 0
A27: =IF('Форма 4.3.1'!$G$39="",1,0) -> 0
A28: =IF('Форма 4.3.1'!$H$39="",1,0) -> 0
A29: =IF('Форма 4.3.1'!$G$40="",1,0) -> 0
A30: =IF('Форма 4.3.1'!$H$40="",1,0) -> 0
A31: =IF('Форма 4.3.1'!$G$41="",1,0) -> 0
A32: =IF('Форма 4.3.1'!$H$41="",1,0) -> 0
A33: =IF('Форма 4.3.1'!$G$42="",1,0) -> 0
A34: =IF('Форма 4.3.1'!$H$42="",1,0) -> 0
A35: =IF('Форма 4.3.1'!$G$43="",1,0) -> 0
A36: =IF('Форма 4.3.1'!$H$43="",1,0) -> 0
A37: =IF('Форма 4.3.1'!$G$44="",1,0) -> 0
A38: =IF('Форма 4.3.1'!$H$44="",1,0) -> 0
A39: =IF('Форма 4.3.1'!$G$45="",1,0) -> 0
A40: =IF('Форма 4.3.1'!$H$45="",1,0) -> 0
A41: =IF('Форма 4.3.1'!$G$46="",1,0) -> 0
A42: =IF('Форма 4.3.1'!$H$46="",1,0) -> 0
A43: =IF('Форма 4.3.1'!$G$47="",1,0) -> 0
A44: =IF('Форма 4.3.1'!$H$47="",1,0) -> 0
A45: =IF('Форма 4.3.1'!$G$48="",1,0) -> 0
A46: =IF('Форма 4.3.1'!$H$48="",1,0) -> 0
A47: =IF('Форма 4.3.1'!$G$49="",1,0) -> 0
A48: =IF('Форма 4.3.1'!$H$49="",1,0) -> 0
A49: =IF('Форма 4.3.1'!$G$50="",1,0) -> 0
A50: =IF('Форма 4.3.1'!$H$50="",1,0) -> 0
A51: =IF('Форма 4.3.1'!$G$51="",1,0) -> 0
A52: =IF('Форма 4.3.1'!$H$51="",1,0) -> 0
A53: =IF('Форма 4.3.1'!$G$52="",1,0) -> 0
A54: =IF('Форма 4.3.1'!$H$52="",1,0) -> 0
A55: =IF('Форма 4.3.1'!$G$53="",1,0) -> 0
A56: =IF('Форма 4.3.1'!$H$53="",1,0) -> 0
A57: =IF('Форма 4.3.1'!$G$54="",1,0) -> 0
A58: =IF('Форма 4.3.1'!$H$54="",1,0) -> 0
A59: =IF('Форма 4.3.1'!$G$55="",1,0) -> 0
A60: =IF('Форма 4.3.1'!$H$55="",1,0) -> 0
A61: =IF('Форма 4.3.1'!$G$56="",1,0) -> 0
A62: =IF('Форма 4.3.1'!$H$56="",1,0) -> 0
A63: =IF('Форма 4.3.1'!$G$70="",1,0) -> 0
A64: =IF('Форма 4.3.1'!$H$70="",1,0) -> 0
A65: =IF('Форма 4.3.1'!$G$71="",1,0) -> 0
A66: =IF('Форма 4.3.1'!$H$71="",1,0) -> 0
A67: =IF('Форма 4.3.1'!$G$72="",1,0) -> 0
A68: =IF('Форма 4.3.1'!$H$72="",1,0) -> 0
A69: =IF('Форма 4.3.1'!$G$73="",1,0) -> 0
A70: =IF('Форма 4.3.1'!$H$73="",1,0) -> 0
A71: =IF('Форма 4.3.1'!$G$74="",1,0) -> 0
A72: =IF('Форма 4.3.1'!$H$74="",1,0) -> 0
A73: =IF('Форма 4.3.1'!$G$75="",1,0) -> 0
A74: =IF('Форма 4.3.1'!$H$75="",1,0) -> 0
A75: =IF('Форма 4.3.1'!$G$76="",1,0) -> 0
A76: =IF('Форма 4.3.1'!$H$76="",1,0) -> 0
A77: =IF('Форма 4.3.1'!$G$77="",1,0) -> 0
A78: =IF('Форма 4.3.1'!$H$77="",1,0) -> 0
A79: =IF('Форма 4.3.1'!$G$78="",1,0) -> 0
A80: =IF('Форма 4.3.1'!$H$78="",1,0) -> 0
A81: =IF('Форма 4.3.1'!$G$79="",1,0) -> 0
A82: =IF('Форма 4.3.1'!$H$79="",1,0) -> 0
A83: =IF('Форма 4.3.1'!$G$82="",1,0) -> 0
A84: =IF('Форма 4.3.1'!$H$82="",1,0) -> 0
A85: =IF('Форма 4.3.1'!$G$83="",1,0) -> 0
A86: =IF('Форма 4.3.1'!$H$83="",1,0) -> 0
A87: =IF('Форма 4.3.1'!$G$85="",1,0) -> 0
A88: =IF('Форма 4.3.1'!$H$85="",1,0) -> 0
A89: =IF('Форма 4.3.1'!$G$86="",1,0) -> 0
A90: =IF('Форма 4.3.1'!$H$86="",1,0) -> 0
A91: =IF('Форма 4.3.1'!$G$87="",1,0) -> 0
A92: =IF('Форма 4.3.1'!$H$87="",1,0) -> 0
A93: =IF('Форма 4.3.1'!$G$88="",1,0) -> 0
A94: =IF('Форма 4.3.1'!$H$88="",1,0) -> 0
A95: =IF('Форма 4.3.1'!$G$89="",1,0) -> 0
A96: =IF('Форма 4.3.1'!$H$89="",1,0) -> 0
A97: =IF('Форма 4.3.1'!$G$90="",1,0) -> 0
A98: =IF('Форма 4.3.1'!$H$90="",1,0) -> 0
A99: =IF('Форма 4.3.1'!$G$91="",1,0) -> 0
A100: =IF('Форма 4.3.1'!$H$91="",1,0) -> 0
A101: =IF('Форма 4.3.1'!$G$92="",1,0) -> 0
A102: =IF('Форма 4.3.1'!$H$92="",1,0) -> 0
A103: =IF('Форма 4.3.1'!$G$93="",1,0) -> 0
A104: =IF('Форма 4.3.1'!$H$93="",1,0) -> 0
A105: =IF('Форма 4.3.1'!$G$94="",1,0) -> 0
A106: =IF('Форма 4.3.1'!$H$94="",1,0) -> 0
A107: =IF('Форма 4.3.1'!$G$97="",1,0) -> 0
A108: =IF('Форма 4.3.1'!$H$97="",1,0) -> 0
A109: =IF('Форма 4.3.1'!$G$100="",1,0) -> 0
A110: =IF('Форма 4.3.1'!$H$100="",1,0) -> 0
A111: =IF('Форма 4.3.1'!$G$103="",1,0) -> 0
A112: =IF('Форма 4.3.1'!$H$103="",1,0) -> 0
A113: =IF('Форма 4.3.1'!$G$104="",1,0) -> 0
A114: =IF('Форма 4.3.1'!$H$104="",1,0) -> 0
A115: =IF('Форма 4.4'!$I$11="",1,0) -> 0
A116: =IF('Форма 4.4'!$G$12="",1,0) -> 0
A117: =IF('Форма 4.4'!$I$12="",1,0) -> 0
A118: =IF('Форма 4.4'!$G$13="",1,0) -> 0
A119: =IF('Форма 4.4'!$I$13="",1,0) -> 0
A120: =IF('Форма 4.4'!$G$18="",1,0) -> 0
A121: =IF('Форма 4.4'!$I$18="",1,0) -> 0
A122: =IF('Форма 4.4'!$G$19="",1,0) -> 0
A123: =IF('Форма 4.4'!$I$19="",1,0) -> 0
A124: =IF('Форма 4.4'!$G$11="",1,0) -> 0
A125: =IF('Форма 4.5'!$I$11="",1,0) -> 1
A126: =IF('Форма 4.5'!$I$12="",1,0) -> 1
A127: =IF('Форма 4.5'!$I$15="",1,0) -> 1
A128: =IF('Форма 4.5'!$I$16="",1,0) -> 1
A129: =IF('Форма 4.5'!$I$17="",1,0) -> 1
A130: =IF('Форма 4.5'!$I$18="",1,0) -> 1
A131: =IF('Форма 4.5'!$G$23="",1,0) -> 1
A132: =IF('Форма 4.5'!$G$24="",1,0) -> 1
A133: =IF('Форма 4.5'!$I$24="",1,0) -> 1
A134: =IF('Форма 4.5'!$G$91="",1,0) -> 1
A135: =IF('Форма 4.5'!$I$92="",1,0) -> 1
A136: =IF('Форма 4.5'!$I$93="",1,0) -> 1
A137: =IF('Форма 4.5'!$I$94="",1,0) -> 1
A138: =IF('Форма 4.5'!$I$95="",1,0) -> 1
A139: =IF('Форма 4.5'!$I$14="",1,0) -> 1
A140: =IF('Форма 4.3.1'!$E$62="",1,0) -> 0
A141: =IF('Форма 4.3.1'!$E$63="",1,0) -> 0
A142: =IF('Форма 4.3.1'!$E$64="",1,0) -> 0
A143: =IF('Форма 4.3.1'!$E$65="",1,0) -> 0
A144: =IF('Форма 4.3.1'!$E$66="",1,0) -> 0
A145: =IF('Форма 4.3.1'!$E$67="",1,0) -> 0
A146: =IF('Форма 4.3.1'!$E$68="",1,0) -> 0

Sheet modInfo (hidden)
B1: Территории
A2: 1 | B2: Наименование территории оказания услуг для целей идентификации
A3: 2 | B3: Муниципальные районы и муниципальные образования, на территории которых осуществляется оказание услуг
B4: Дифференциация
A5: 1 | B5: В случае, если регулируемая организация осуществляет несколько видов деятельности, информация о которых подлежит раскрытию, информация по каждому виду деятельности раскрывается отдельно.
A6: 2 | B6: Поле заполняется выбором значений из списка. Если значений для выбора нет - убедитесь, что лист "Территории" заполнен.
A7: 3 | B7: Условное наименование централизованной системы коммунальной инфраструктуры для целей идентификации.
A8: 4 | B8: В случае, если регулируемыми организациями оказываются услуги по нескольким технологически не связанным между собой централизованным системам коммунальной инфраструктуры и если в отношении указанных централизованных систем устанавливаются различные тарифы, то информация раскрывается отдельно по каждой централизованной системе коммунальной инфраструктуры.
B9: Сведения об изменении
A10: 1 | B10: Лист заполняется в случае, если на Титульном листе в поле "Тип отчета" выбрано значение «Изменения в раскрытой ранее информации».
B11: Нет доступных обновлений, версия отчёта актуальна

Sheet TEHSHEET (hidden)
A1: REGION | C1: year_list | D1: logical | E1: Месяц (MONTH) | F1: Квартал (QUARTER) | G1: Месяц (kind_of_publication) | H1: Единица измерения объема оказываемых услуг ГВС /kind_of_unit_GVS/ | I1: Вид тарифа /list_of_tariff/ | J1: mr_id | K1: версия шаблона (DocProp_Version) | L1: 0.1 | M1: Тип отчета data_type | O1: Источники финансирования /source_of_funding/ | P1: цель инвестиционной программы /kind_of_purchase_method/ | S1: Перечень форм (kind_of_forms) | V1: цель инвестиционной программы /objective_of_IPR/ | Z1: Тип организации kind_of_org_type | AB1: Виды топлива /kind_of_fuels/
A2: Алтайский край | C2: 2017 | D2: да | E2: январь | F2: I квартал | G2: На официальном сайте организации | H2: тыс.куб.м/сутки | J2: 52 | K2: код шаблона (DocProp_TemplateCode) | L2: FAS.JKH.OPEN.INFO.BALANCE.HVS | M2: первичное раскрытие информации | O2: кредиты банков | P2: Торги/аукционы | S2: Форма 1.0.1 | T2: Основные параметры раскрываемой информации | V2: автоматизация (с уменьшением штата) | W2: FALSE | Z2: Регулируемая организация | AB2: газ природный по регулируемой цене | AC2: тыс м3
A3: Амурская область | C3: 2018 | D3: нет | E3: февраль | F3: II квартал | G3: На сайте регулирующего органа | H3: Гкал/час | I3: Без дифференциации | J3: sys_id | K3: сфера (TSphere) | L3: ХВС | M3: изменения в раскрытой ранее информации | O3: кредиты иностранных банков | P3: Прямые договора без торгов | S3: Форма 4.3.1 | T3: Информация об основных показателях финансово-хозяйственной деятельности регулируемой организации, включая структуру основных производственных затрат (в части регулируемой деятельности), информация об основных технико-экономических параметрах деятельности единой теплоснабжающей организации, теплоснабжающей организации и теплосетевой организации в ценовых зонах теплоснабжения | V3: уменьшение удельных затрат (повышение КПД) | W3: FALSE | Z3: Единая теплоснабжающая организация в ценовой зоне теплоснабжения | AB3: газ природный по нерегулируемой цене | AC3: тыс м3
A4: Архангельская область | C4: 2019 | E4: март | F4: III квартал | H4: куб.м/час | J4: 104 | K4: сфера(латиница) (TSphere_trans) | L4: VS | O4: заемные средства др. организаций | P4: Прочее | S4: Форма 4.3.2 | T4: Информация о расходах на капитальный и текущий ремонт основных производственных средств, расходах на услуги производственного характера | V4: уменьшение издержек на производство | W4: FALSE | Z4: Теплоснабжающая организация в ценовой зоне теплоснабжения | AB4: газ сжиженный | AC4: кг
A5: Астраханская область | C5: 2020 | E5: апрель | F5: IV квартал | K5: сфера расширено (TSphere_full) | O5: федеральный бюджет | S5: Форма 4.4 | T5: Информация об основных потребительских характеристиках регулируемых товаров и услуг регулируемой организации и их соответствии установленным требованиям | V5: снижение аварийности | W5: FALSE | Z5: Теплосетевая организация в ценовой зоне теплоснабжения | AB5: газовый конденсат | AC5: тонны
A6: Белгородская область | E6: май | O6: бюджет субъекта Российской Федерации | S6: Форма 4.5 | T6: Информация об инвестиционных программах | V6: прочее | W6: FALSE | AB6: гшз | AC6: тонны
A7: Брянская область | E7: июнь | O7: бюджет муниципального образования | S7: Форма 4.9 | T7: Информация о способах приобретения, стоимости и объемах товаров, необходимых для производства товаров и (или) оказания услуг | AB7: мазут | AC7: тонны
A8: Владимирская область | E8: июль | K8: true | O8: средства внебюджетных фондов | AB8: нефть | AC8: тонны
A9: Волгоградская область | E9: август | O9: прибыль, направленная на инвестиции | AB9: дизельное топливо | AC9: тонны
A10: Вологодская область | E10: сентябрь | O10: амортизация | AB10: уголь бурый | AC10: тонны
A11: Воронежская область | E11: октябрь | O11: инвестиционная надбавка к тарифу | AB11: уголь каменный | AC11: тонны
A12: г.Байконур | E12: ноябрь | O12: плата за подключение (технологическое присоединение) | AB12: торф | AC12: тонны
A13: г. Москва | E13: декабрь | O13: прочие средства | AB13: дрова | AC13: м3
A14: г.Санкт-Петербург | AB14: опил | AC14: м3
A15: г.Севастополь | AB15: отходы березовые | AC15: м3
A16: Еврейская автономная область | G16: Текущая дата | AB16: отходы осиновые | AC16: м3
A17: Забайкальский край | C17: Организация | D17: =IF(f_year = "","", "01.01."&f_year) -> 01.01.2018 | E17: =IF(f_year = "","", "31.12."& f_year) -> 31.12.2018 | G17: 29.04.2019 19:11:44 | AB17: печное топливо | AC17: тонны
A18: Ивановская область | AB18: пилеты | AC18: тонны
A19: Иркутская область | G19: Признак изменения данных на листе Доступ к товарам и услугам | AB19: смола | AC19: тонны
A20: Кабардино-Балкарская республика | C20: Виды деятельности | G20: TRUE | AB20: щепа | AC20: м3
A21: Калининградская область | AB21: горючий сланец | AC21: тонны
A22: Калужская область | AB22: керосин | AC22: тонны
A23: Камчатский край | AB23: кислородно-водородная смесь | AC23: тыс м3
A24: Карачаево-Черкесская республика | AB24: электроэнергия (НН) | AC24: тыс кВт.ч
A25: Кемеровская область | AB25: электроэнергия (СН1) | AC25: тыс кВт.ч
A26: Кировская область | AB26: электроэнергия (СН2) | AC26: тыс кВт.ч
A27: Костромская область | AB27: электроэнергия (ВН) | AC27: тыс кВт.ч
A28: Краснодарский край | AB28: мощность | AC28: тыс кВт
A29: Красноярский край | AB29: прочее
A30: Курганская область
A31: Курская область
A32: Ленинградская область
A33: Липецкая область
A34: Магаданская область
A35: Московская область
A36: Мурманская область
A37: Ненецкий автономный округ
A38: Нижегородская область
A39: Новгородская область
A40: Новосибирская область
A41: Омская область
A42: Оренбургская область
A43: Орловская область
A44: Пензенская область
A45: Пермский край
A46: Приморский край
A47: Псковская область
A48: Республика Адыгея
A49: Республика Алтай
A50: Республика Башкортостан
A51: Республика Бурятия
A52: Республика Дагестан
A53: Республика Ингушетия
A54: Республика Калмыкия
A55: Республика Карелия
A56: Республика Коми
A57: Республика Крым
A58: Республика Марий Эл
A59: Республика Мордовия
A60: Республика Саха (Якутия)
A61: Республика Северная Осетия-Алания
A62: Республика Татарстан
A63: Республика Тыва
A64: Республика Хакасия
A65: Ростовская область
A66: Рязанская область
A67: Самарская область
A68: Саратовская область
A69: Сахалинская область
A70: Свердловская область
A71: Смоленская область
A72: Ставропольский край
A73: Тамбовская область
A74: Тверская область
A75: Томская область
A76: Тульская область
A77: Тюменская область
A78: Удмуртская республика
A79: Ульяновская область
A80: Хабаровский край
A81: Ханты-Мансийский автономный округ
A82: Челябинская область
A83: Чеченская республика
A84: Чувашская республика
A85: Чукотский автономный округ
A86: Ямало-Ненецкий автономный округ
A87: Ярославская область

Sheet modfrmSelectData (hidden)

Sheet modList06 (hidden)

Sheet modList01 (hidden)

Sheet modList08 (hidden)

Sheet et_union_hor (hidden)
A3: et_Comm
A7: et_List04
A13: et_List09_0
B15: auto | D15: 1 | G15: 0 | J15: 0 | M15: =mergeValue(H15) ->  | P15: =IF(ISERROR(MATCH(MID(Q15,1,250),MID(note_ter,1,250),0)),"n","y") -> n | R15: =K15&"("&L15&")" -> ()
H16: Добавить МР
A18: et_List09_1
B20: auto | G20: 0 | J20: 0 | M20: =mergeValue(H20) ->  | R20: =K20&"("&L20&")" -> ()
K21: Добавить МО
A23: et_List09_2
B25: auto | J25: 0 | M25: =mergeValue(H25) ->  | R25: =K25&" ("&L25&")" -> ()
A27: et_List07_1
D29: 1 | F29: нет | H29: 1 | J29: нет | L29: 1 | Y29: a | Z29: 1705000
M30: Добавить централизованную систему коммунальной инфраструктуры
I31: Добавить описание территории оказания услуг
A33: et_List07_4
H35: 1 | J35: нет | L35: 1 | Y35: a | Z35: 1705000
M36: Добавить централизованную систему коммунальной инфраструктуры
A38: et_List07_5
L40: 1 | Y40: a | Z40: 1705000
A43: et_List03
A45: 3 | M45: =IF(ISERROR(INDEX(kind_of_nameforms,MATCH(E45,kind_of_forms,0),1)),"",INDEX(kind_of_nameforms,MATCH(E45,kind_of_forms,0),1)) -> 
A47: et_List02_st | B47: et_List02_ter | C47: et_List02_mr | D47: et_List02_mo
D50: Форма 1.0.1
D51: Параметры формы | G51: Описание параметров формы
A52: \ | D52: № п/п | F52: Информация
D53: 1 | E53: 2 | F53: 3 | G53: 4
D54: 1 | E54: Дата заполнения/внесения изменений | F54: =IF(form_up_date="","",form_up_date) -> 29.04.2019 | G54: Указывается календарная дата первичного заполнения или внесения изменений в форму в виде «ДД.ММ.ГГГГ».
D55: 2.1 | E55: Наименование централизованной системы коммунальной инфраструктуры | G55: Указывается наименование централизованной системы холодного водоснабжения/горячего водоснабжения/водоотведения/теплоснабжения, к которой относится размещаемая информация. В случае наличия нескольких централизованных систем коммунальной инфраструктуры, информация по каждой из них указывается в отдельной строке.
D56: 3.1 | E56: Наименование регулируемого вида деятельности | G56: Указывается наименование вида регулируемой деятельности.
D57: 4.1 | E57: Территория оказания услуги по регулируемому виду деятельности | F57: x
D58: =D57&".1" -> 4.1.1 | E58: Субъект РФ | F58: =IF(region_name="","",region_name) -> Ивановская область | G58: Указывается наименование субъекта Российской Федерации
D59: 4.1.1.1 | E59: муниципальный район | G59: Указывается наименование муниципального района, на территории которого организация оказывает услуги по регулируемому виду деятельности.
D60: 4.1.1.1.1 | E60: муниципальное образование | G60: Указывается наименование и код муниципального района, муниципального образования в соответствии с Общероссийским классификатором территорий муниципальных образований (далее - ОКТМО), входящего в муниципальный район, на территории которого организация оказывает услуги по регулируемому виду деятельности. В случае оказания услуг по регулируемому виду деятельности на территории нескольких муниципальных районов (муниципальных образований) данные по каждому их них указываются в отдельной строке.
A66: et_List05_4
D68: 1 | AG68: NOTSHOW | AH68: 3
E69: Информация об объемах товаров и услуг, их стоимости и способах приобретения у организаций, в том числе: | Q69: =SUMIF(T70:T71,"i",Q70:Q71) -> 0 | S69: Указывается сумма стоимости приобретения товаров и услуг у организаций, сумма оплаты услуг которых превышает 20% суммы расходов на капитальный и текущий ремонт основных производственных средства | T69: i | U69: 1 | V69: =INDEX(List01_flag_index_1,1,MATCH(A68,List01_NumberColumns,0)) -> 
F70: 0
T72: i | U72: 2 | V72: =INDEX(List01_flag_index_2,1,MATCH(A68,List01_NumberColumns,0)) -> 
A76: et_List05_4
D78: 1 | AG78: NOTSHOW | AH78: 3
F79: 1 | G79: Информация об объемах товаров и услуг, их стоимости и способах приобретения у организаций, в том числе: | Q79: =SUMIF(T80:T85,"i",Q80:Q85) -> 0 | S79: Указывается сумма стоимости приобретения товаров и услуг у организаций, сумма оплаты услуг которых превышает 20% суммы расходов на капитальный и текущий ремонт основных производственных средства | T79: i | U79: 1 | V79: =INDEX(List01_flag_index_1,1,MATCH(A78,List01_NumberColumns,0)) -> 
F80: 0
F81: 1.1 | I81: 1 | J81: Итого по поставщику, в том числе | K81: х | L81: х | N81: х | O81: х | P81: х | Q81: =SUM(Q82:Q84) -> 0 | R81: =nerr(Q81/List01_costs_OPS)*100 ->  | S81: Указывается информация отдельно по организациям, сумма оплаты услуг которых превышает 20% суммы расходов на капитальный и текущий ремонт основных производственных средства. Способ приобретения определяется из перечня: Торги/аукционы; Прямые договора без торгов; Прочее | T81: i
I82: 1.1 | M82: 1 | R82: =nerr(costs_OPS/List01_costs_OPS)*100 -> 
N83: Добавить товар/услугу
J84: Добавить способ
G85: Добавить поставщика | S85: В случае наличия нескольких поставщиков, договоров, товаров и (или) услуг информация по ним указывается в отдельных строках.
T86: i | U86: 2 | V86: =INDEX(List01_flag_index_2,1,MATCH(A78,List01_NumberColumns,0)) -> 
T88: i
A98: et_List13_1

Sheet et_union_vert (hidden)

Sheet modList00 (hidden)

Sheet modList02 (hidden)

Sheet modList03 (hidden)

Sheet modList04 (hidden)

Sheet modList09 (hidden)

Sheet modHTTP (hidden)

Sheet modfrmRegion (hidden)

Sheet MR_LIST (hidden)

Sheet REESTR_VT (hidden)

Sheet REESTR_VED (hidden)
A1: ID_TARIFF_NAME | B1: VED_NAME
A2: 4190064 | B2: Производство тепловой энергии. Некомбинированная выработка
A3: 4190065 | B3: Производство тепловой энергии. Комбинированная выработка с уст. мощностью производства электрической энергии менее 25 МВт
A4: 4190066 | B4: Производство тепловой энергии. Комбинированная выработка с уст. мощностью производства электрической энергии 25 МВт и более
A5: 4190067 | B5: Производство. Теплоноситель
A6: 4190068 | B6: Передача. Тепловая энергия
A7: 4190069 | B7: Передача. Теплоноситель
A8: 4190070 | B8: Сбыт. Тепловая энергия
A9: 4190071 | B9: Сбыт. Теплоноситель
A10: 4190072 | B10: Подключение (технологическое присоединение) к системе теплоснабжения
A11: 4190073 | B11: Поддержание резервной тепловой мощности при отсутствии потребления тепловой энергии

Sheet modfrmReestrObj (hidden)

Sheet DataOrg (hidden)

Sheet modfrmReestr (hidden)

Sheet modUpdTemplMain (hidden)

Sheet REESTR_ORG (hidden)
A1: № | B1: REGION_ID | C1: REGION_NAME | D1: RST_ORG_ID | E1: ORG_NAME | F1: INN_NAME | G1: KPP_NAME | H1: ORG_START_DATE | I1: ORG_END_DATE
A2: 1 | B2: 2591 | C2: Ивановская область | D2: 26356432 | E2: АГОУ НПО "Тейковская лесотехническая школа" | F2: 3724001205 | G2: 372401001 | J2: WARM
A3: 2 | B3: 2591 | C3: Ивановская область | D3: 26356448 | E3: АО "Водоканал" | F3: 3702597104 | G3: 370250001 | J3: WARM
A4: 3 | B4: 2591 | C4: Ивановская область | D4: 26560525 | E4: АО "ГУ ЖКХ" | F4: 5116000922 | G4: 511601001 | H4: 13-05-2009 00:00:00 | J4: WARM
A5: 4 | B5: 2591 | C5: Ивановская область | D5: 28135188 | E5: АО "Газпромнефть-Терминал" | F5: 5406724282 | G5: 540601001 | H5: 01-01-2013 00:00:00 | J5: WARM
A6: 5 | B6: 2591 | C6: Ивановская область | D6: 26356464 | E6: АО "Железобетон" | F6: 3731011645 | G6: 370201001 | J6: WARM
A7: 6 | B7: 2591 | C7: Ивановская область | D7: 28795512 | E7: АО "ИГТСК" | F7: 3702733445 | G7: 370201001 | J7: WARM
A8: 7 | B8: 2591 | C8: Ивановская область | D8: 26356460 | E8: АО "ИСМА" | F8: 3702088266 | G8: 370201001 | J8: WARM
A9: 8 | B9: 2591 | C9: Ивановская область | D9: 28795526 | E9: АО "ИвГТЭ" | F9: 3702733438 | G9: 370250001 | H9: 01-07-2014 00:00:00 | J9: WARM
A10: 9 | B10: 2591 | C10: Ивановская область | D10: 26356454 | E10: АО "Ивстройкерамика" | F10: 3729023717 | G10: 370201001 | J10: WARM
A11: 10 | B11: 2591 | C11: Ивановская область | D11: 26356349 | E11: АО "Кинешемская прядильно-ткацкая фабрика" | F11: 3703011227 | G11: 370301001 | J11: WARM
A12: 11 | B12: 2591 | C12: Ивановская область | D12: 27734219 | E12: АО "Наволокское коммунальное хозяйство" | F12: 3713007692 | G12: 371301001 | J12: WARM
A13: 12 | B13: 2591 | C13: Ивановская область | D13: 26319298 | E13: АО "ПСК" | F13: 3729007313 | G13: 370201001 | J13: WARM
A14: 13 | B14: 2591 | C14: Ивановская область | D14: 26356344 | E14: АО "Поликор" | F14: 3703000190 | G14: 370301001 | J14: WARM
A15: 14 | B15: 2591 | C15: Ивановская область | D15: 26838066 | E15: АО "РЭУ" | F15: 7714783092 | G15: 770401001 | J15: WARM
A16: 15 | B16: 2591 | C16: Ивановская область | D16: 26356375 | E16: АО "Ресурсоснабжающая организация" | F16: 3704562555 | G16: 370401001 | J16: WARM
A17: 16 | B17: 2591 | C17: Ивановская область | D17: 28797488 | E17: АО "Теплогенерирующая компания-7" | F17: 5024139265 | G17: 502401001 | J17: WARM
A18: 17 | B18: 2591 | C18: Ивановская область | D18: 26322043 | E18: АО "Энергосервис" | F18: 7709571825 | G18: 770301001 | J18: WARM
A19: 18 | B19: 2591 | C19: Ивановская область | D19: 30358133 | E19: АО Учхоз "Чернореченский" | F19: 3711039547 | G19: 371101001 | H19: 09-10-2015 00:00:00 | J19: WARM
A20: 19 | B20: 2591 | C20: Ивановская область | D20: 28458375 | E20: ГУП Ивановской области "Центр-Профи" | F20: 3730001965 | G20: 370201001 | J20: WARM
A21: 20 | B21: 2591 | C21: Ивановская область | D21: 26356446 | E21: Городской оздоровительный центр г. Иваново | F21: 3728001044 | G21: 370201001 | J21: WARM
A22: 21 | B22: 2591 | C22: Ивановская область | D22: 27578018 | E22: ЗАО "ИП "Родники" | F22: 3701046986 | G22: 370101001 | J22: WARM
A23: 22 | B23: 2591 | C23: Ивановская область | D23: 26356467 | E23: ЗАО "ИвТБС" | F23: 3731023506 | G23: 371101001 | J23: WARM
A24: 23 | B24: 2591 | C24: Ивановская область | D24: 28871825 | E24: ЗАО "Ивановская областная типография" | F24: 3702036973 | G24: 370201001 | J24: WARM
A25: 24 | B25: 2591 | C25: Ивановская область | D25: 31250419 | E25: ЗАО "Кран-Инвест" | F25: 3702071745 | G25: 370201001 | J25: WARM
A26: 25 | B26: 2591 | C26: Ивановская область | D26: 26356428 | E26: ЗАО "Надежда" | F26: 3722000340 | G26: 372201001 | J26: WARM
A27: 26 | B27: 2591 | C27: Ивановская область | D27: 26356334 | E27: ЗАО "Новая тепловая компания" | F27: 3702053009 | G27: 370201001 | J27: WARM
A28: 27 | B28: 2591 | C28: Ивановская область | D28: 26372351 | E28: ЗАО "РМЗ" | F28: 3721006639 | G28: 372101001 | J28: WARM
A29: 28 | B29: 2591 | C29: Ивановская область | D29: 26613761 | E29: ЗАО "РЭК" | F29: 3721005554 | G29: 372101001 | J29: WARM
A30: 29 | B30: 2591 | C30: Ивановская область | D30: 26356335 | E30: ЗАО "УП ЖКХ" | F30: 3702070170 | G30: 370201001 | J30: WARM
A31: 30 | B31: 2591 | C31: Ивановская область | D31: 26356453 | E31: ЗАО "Электроконтакт" | F31: 3703000592 | G31: 370301001 | J31: WARM
A32: 31 | B32: 2591 | C32: Ивановская область | D32: 28872599 | E32: ЗАО НПП "Кабельщик Плюс" | F32: 3729030200 | G32: 370201001 | J32: WARM
A33: 32 | B33: 2591 | C33: Ивановская область | D33: 26550517 | E33: ИБХР ФКУ "ЦОУМТС МВД России" | F33: 7722093367 | G33: 370201001 | J33: WARM
A34: 33 | B34: 2591 | C34: Ивановская область | D34: 28798631 | E34: ИП Смирнов М.А. | F34: 372100114738 | G34: отсутствует | J34: WARM
A35: 34 | B35: 2591 | C35: Ивановская область | D35: 31032511 | E35: ИП Шорохов С.В. | F35: 370142619102 | G35: отсутствует | J35: WARM
A36: 35 | B36: 2591 | C36: Ивановская область | D36: 26358406 | E36: Ивановский филиал ОАО "ТГК-6" | F36: 5257072937 | G36: 370202001 | J36: WARM
A37: 36 | B37: 2591 | C37: Ивановская область | D37: 28031225 | E37: МК Жажлевская средняя общеобразовательная школа | F37: 3710004414 | G37: 371001001 | J37: WARM
A38: 37 | B38: 2591 | C38: Ивановская область | D38: 28031202 | E38: МК Заречная средняя общеобразовательная школа | F38: 3710004206 | G38: 371001001 | H38: 04-03-2002 00:00:00 | J38: WARM
A39: 38 | B39: 2591 | C39: Ивановская область | D39: 26356364 | E39: МП ЖКХ г. Шуи | F39: 3706001530 | G39: 370601001 | J39: WARM
A40: 39 | B40: 2591 | C40: Ивановская область | D40: 27637850 | E40: МП ЗР «Заволжское РМПО ЖКХ» | F40: 3710000360 | G40: 371001001 | J40: WARM
A41: 40 | B41: 2591 | C41: Ивановская область | D41: 26372358 | E41: МУП "ЖКХ Большеклочковского сельского поселения" | F41: 3724018791 | G41: 372401001 | J41: WARM
A42: 41 | B42: 2591 | C42: Ивановская область | D42: 26372359 | E42: МУП "ЖКХ Крапивновского сельского поселения" | F42: 3724018978 | G42: 372401001 | J42: WARM
A43: 42 | B43: 2591 | C43: Ивановская область | D43: 28030944 | E43: МУП "ЖКХ Шуйского муниципального района" | F43: 3706019048 | G43: 370601001 | H43: 25-04-2012 00:00:00 | J43: WARM
A44: 43 | B44: 2591 | C44: Ивановская область | D44: 26356437 | E44: МУП "ЖКХ пос. Колобово" | F44: 3725003124 | G44: 372501001 | J44: WARM
A45: 44 | B45: 2591 | C45: Ивановская область | D45: 27986635 | E45: МУП "Заволжский коммунальщик" | F45: 3703045794 | G45: 370301001 | J45: WARM
A46: 45 | B46: 2591 | C46: Ивановская область | D46: 30351598 | E46: МУП "Заволжское коммунальное хозяйство" | F46: 3703048509 | G46: 370301001 | H46: 15-10-2015 00:00:00 | J46: WARM
A47: 46 | B47: 2591 | C47: Ивановская область | D47: 28510819 | E47: МУП "Коммунальные системы" | F47: 3701048768 | G47: 370101001 | J47: WARM
A48: 47 | B48: 2591 | C48: Ивановская область | D48: 31245240 | E48: МУП "Коммунальщик" | F48: 3711024251 | G48: 371101001 | J48: WARM
A49: 48 | B49: 2591 | C49: Ивановская область | D49: 26755427 | E49: МУП "Комсомольский банно-прачечный комбинат" | F49: 3714083946 | G49: 371401001 | J49: WARM
A50: 49 | B50: 2591 | C50: Ивановская область | D50: 27556180 | E50: МУП "МПО ЖКХ" | F50: 3704000764 | G50: 370401001 | J50: WARM
A51: 50 | B51: 2591 | C51: Ивановская область | D51: 30873072 | E51: МУП "МУК" | F51: 3720007252 | G51: 372001001 | J51: WARM
A52: 51 | B52: 2591 | C52: Ивановская область | D52: 26356414 | E52: МУП "Приволжское ТЭП" | F52: 3719009495 | G52: 371901001 | J52: WARM
A53: 52 | B53: 2591 | C53: Ивановская область | D53: 30871711 | E53: МУП "Тепловик" | F53: 3704008523 | G53: 370401001 | J53: WARM
A54: 53 | B54: 2591 | C54: Ивановская область | D54: 28275268 | E54: МУП "Теплосеть" | F54: 3705066140 | G54: 370501001 | J54: WARM
A55: 54 | B55: 2591 | C55: Ивановская область | D55: 26613840 | E55: МУП ЖКХ "Архиповский Тепловик" | F55: 3711023875 | G55: 372201001 | J55: WARM
A56: 55 | B56: 2591 | C56: Ивановская область | D56: 26758294 | E56: МУП ЖКХ "Нерльское коммунальное объединение" | F56: 3704563196 | G56: 370401001 | J56: WARM
A57: 56 | B57: 2591 | C57: Ивановская область | D57: 26824407 | E57: МУП ЖКХ "Новолеушинское коммунальное объединение" | F57: 3704570517 | G57: 370401001 | J57: WARM
A58: 57 | B58: 2591 | C58: Ивановская область | D58: 30358127 | E58: МУП ЖКХ "ТЕПЛОЭНЕРГЕТИК" | F58: 3711038543 | G58: 371101001 | J58: WARM
A59: 58 | B59: 2591 | C59: Ивановская область | D59: 27556206 | E59: МУП ЖКХ Новогоряновское коммунальное объединение | F59: 3704570901 | G59: 370401001 | J59: WARM
A60: 59 | B60: 2591 | C60: Ивановская область | D60: 26356434 | E60: МУП ЖКХ Тейковского муниципального района | F60: 3724004950 | G60: 372401001 | J60: WARM
A61: 60 | B61: 2591 | C61: Ивановская область | D61: 26356358 | E61: МУП ЖКХ Фурмановского муниципального района | F61: 3705062837 | G61: 370501001 | J61: WARM
A62: 61 | B62: 2591 | C62: Ивановская область | D62: 28544217 | E62: МУП ЖКХ Хромцовского сельского поселения | F62: 3705005331 | G62: 370501001 | J62: WARM
A63: 62 | B63: 2591 | C63: Ивановская область | D63: 28286428 | E63: МУП ЗГП "Заволжский коммунальщик" | F63: 3710006210 | G63: 370301001 | J63: WARM
A64: 63 | B64: 2591 | C64: Ивановская область | D64: 26356323 | E64: МУП ОК и ТС г.Вичуга | F64: 3701000050 | G64: 370101001 | J64: WARM
A65: 64 | B65: 2591 | C65: Ивановская область | D65: 28869689 | E65: МУП РМПО ЖКХ Ильинского муниципального района | F65: 3712001144 | G65: 371201001 | J65: WARM
A66: 65 | B66: 2591 | C66: Ивановская область | D66: 26356347 | E66: МУП г. Кинешмы "ОК и ТС" | F66: 3703002014 | G66: 370301001 | J66: WARM
A67: 66 | B67: 2591 | C67: Ивановская область | D67: 26372316 | E67: МУПП "ЖКХ "Кохмабытсервис" | F67: 3711004061 | G67: 373201001 | J67: WARM
A68: 67 | B68: 2591 | C68: Ивановская область | D68: 26383201 | E68: ОАО "Газпром газораспределение Иваново" | F68: 3730006498 | G68: 370250001 | J68: WARM
A69: 68 | B69: 2591 | C69: Ивановская область | D69: 28463102 | E69: ОАО "Газпромнефть-Ярославль" | F69: 7604140860 | G69: 760401001 | J69: WARM
A70: 69 | B70: 2591 | C70: Ивановская область | D70: 27945135 | E70: ОАО "ИНТЕР РАО ЕЭС" | F70: 2320109650 | G70: 997450001 | J70: WARM
A71: 70 | B71: 2591 | C71: Ивановская область | D71: 26955924 | E71: ОАО "Ивановоглавснаб" | F71: 3728000065 | G71: 370201001 | J71: WARM
A72: 71 | B72: 2591 | C72: Ивановская область | D72: 26356463 | E72: ОАО "Ивхимпром" | F72: 3731001968 | G72: 370201001 | J72: WARM
A73: 72 | B73: 2591 | C73: Ивановская область | D73: 26356436 | E73: ОАО "Колобовская ткацкая фабрика" | F73: 3725000765 | G73: 372501001 | J73: WARM
A74: 73 | B74: 2591 | C74: Ивановская область | D74: 26559861 | E74: ОАО "Комсервис" | F74: 3711022670 | G74: 371501001 | J74: WARM
A75: 74 | B75: 2591 | C75: Ивановская область | D75: 28032273 | E75: ОАО "ПИ "Гипрокоммунэнерго" | F75: 3702548604 | G75: 370201001 | J75: WARM
A76: 75 | B76: 2591 | C76: Ивановская область | D76: 26356417 | E76: ОАО "Пучежская МТС" | F76: 3720000137 | G76: 372001001 | J76: WARM
A77: 76 | B77: 2591 | C77: Ивановская область | D77: 26356389 | E77: ОАО "Савинский теплосервис" | F77: 3711024195 | G77: 372201001 | J77: WARM
A78: 77 | B78: 2591 | C78: Ивановская область | D78: 26372324 | E78: ОАО "Совхоз "Тепличный" | F78: 3711021726 | G78: 371101001 | J78: WARM
A79: 78 | B79: 2591 | C79: Ивановская область | D79: 27562160 | E79: ОАО "ТСП" | F79: 3704006981 | G79: 370401001 | J79: WARM
A80: 79 | B80: 2591 | C80: Ивановская область | D80: 26554393 | E80: ОАО "Тейковское предприятие тепловых сетей" | F80: 3704005258 | G80: 370401001 | J80: WARM
A81: 80 | B81: 2591 | C81: Ивановская область | D81: 26356361 | E81: ОАО "Шуйская гармонь" | F81: 3706000784 | G81: 370601001 | J81: WARM
A82: 81 | B82: 2591 | C82: Ивановская область | D82: 27836230 | E82: ОАО "Энергосервис" | F82: 3705062604 | G82: 370501001 | J82: WARM
A83: 82 | B83: 2591 | C83: Ивановская область | D83: 26356366 | E83: ОАО ХБК "Шуйские ситцы" | F83: 3706008060 | G83: 370601001 | J83: WARM
A84: 83 | B84: 2591 | C84: Ивановская область | D84: 28869286 | E84: ОБСУСО "Хозниковский психоневрологический интернат" | F84: 3715003750 | G84: 371501001 | J84: WARM
A85: 84 | B85: 2591 | C85: Ивановская область | D85: 26609685 | E85: ОГКОУ Вичугская школа-интернат V вида | F85: 3707001244 | G85: 370701001 | J85: WARM
A86: 85 | B86: 2591 | C86: Ивановская область | D86: 26614357 | E86: ОГОУ "Юрьевецкая школа-интернат VIII вида" | F86: 3727003105 | G86: 372701001 | J86: WARM
A87: 86 | B87: 2591 | C87: Ивановская область | D87: 26356408 | E87: ООО " Пестяковское ЖКХ" | F87: 3720004942 | G87: 372001001 | J87: WARM
A88: 87 | B88: 2591 | C88: Ивановская область | D88: 26611495 | E88: ООО "АЛЕКС" | F88: 3713005744 | G88: 371301001 | J88: WARM
A89: 88 | B89: 2591 | C89: Ивановская область | D89: 28458290 | E89: ООО "АТЛАНТ" | F89: 3706019680 | G89: 370601001 | J89: WARM
A90: 89 | B90: 2591 | C90: Ивановская область | D90: 31246086 | E90: ООО "Август Т" | F90: 3328446507 | G90: 332801001 | J90: WARM
A91: 90 | B91: 2591 | C91: Ивановская область | D91: 31250437 | E91: ООО "Акрус" | F91: 3706023911 | G91: 370601001 | J91: WARM
A92: 91 | B92: 2591 | C92: Ивановская область | D92: 31246106 | E92: ООО "Альфа" | F92: 7722445731 | G92: 772201001 | J92: WARM
A93: 92 | B93: 2591 | C93: Ивановская область | D93: 30847079 | E93: ООО "Альянс" | F93: 3703019628 | G93: 370301001 | J93: WARM
A94: 93 | B94: 2591 | C94: Ивановская область | D94: 26611155 | E94: ООО "Альянс-Профи" | F94: 3702552872 | G94: 370201001 | J94: WARM
A95: 94 | B95: 2591 | C95: Ивановская область | D95: 26356419 | E95: ООО "Берег" | F95: 3720003586 | G95: 372001001 | J95: WARM
A96: 95 | B96: 2591 | C96: Ивановская область | D96: 30399145 | E96: ООО "Бит Стандарт" | F96: 3702680793 | G96: 370201001 | J96: WARM
A97: 96 | B97: 2591 | C97: Ивановская область | D97: 26356325 | E97: ООО "ВичугаАвтоТрансСервис" | F97: 3701005316 | G97: 370101001 | J97: WARM
A98: 97 | B98: 2591 | C98: Ивановская область | D98: 26615100 | E98: ООО "Водосети" | F98: 3706017266 | G98: 370601001 | J98: WARM
A99: 98 | B99: 2591 | C99: Ивановская область | D99: 26613948 | E99: ООО "Газпром теплоэнерго Иваново" | F99: 3702008951 | G99: 370201001 | J99: WARM
A100: 99 | B100: 2591 | C100: Ивановская область | D100: 31026129 | E100: ООО "Галеон" | F100: 3703020800 | G100: 370301001 | H100: 27-06-2017 00:00:00 | J100: WARM
A101: 100 | B101: 2591 | C101: Ивановская область | D101: 26428292 | E101: ООО "Галтекс" | F101: 3702067805 | G101: 370201001 | J101: WARM
A102: 101 | B102: 2591 | C102: Ивановская область | D102: 30374139 | E102: ООО "Городская Аварийная служба" | F102: 3702694980 | G102: 370401001 | J102: WARM
A103: 102 | B103: 2591 | C103: Ивановская область | D103: 26372315 | E103: ООО "ДСОЛ КД "Березовая Роща" | F103: 3711003188 | G103: 371101001 | J103: WARM
A104: 103 | B104: 2591 | C104: Ивановская область | D104: 28262498 | E104: ООО "Декоративные культуры" | F104: 3702597930 | G104: 370201001 | J104: WARM
A105: 104 | B105: 2591 | C105: Ивановская область | D105: 26356350 | E105: ООО "Дмитриевский химический завод - Производство" | F105: 3703016440 | G105: 370301001 | J105: WARM
A106: 105 | B106: 2591 | C106: Ивановская область | D106: 28460952 | E106: ООО "Единая Теплоснабжающая Компания" | F106: 3701047130 | G106: 370101001 | J106: WARM
A107: 106 | B107: 2591 | C107: Ивановская область | D107: 31245042 | E107: ООО "ЖКХ Сервис" | F107: 3704010297 | G107: 370401001 | J107: WARM
A108: 107 | B108: 2591 | C108: Ивановская область | D108: 26611473 | E108: ООО "Жилкомсервис" | F108: 3703043003 | G108: 370301001 | J108: WARM
A109: 108 | B109: 2591 | C109: Ивановская область | D109: 27628242 | E109: ООО "Жилсервис" | F109: 3704562925 | G109: 370401001 | J109: WARM
A110: 109 | B110: 2591 | C110: Ивановская область | D110: 31026123 | E110: ООО "ЗТС" | F110: 3703047992 | G110: 370301001 | H110: 31-01-2014 00:00:00 | J110: WARM
A111: 110 | B111: 2591 | C111: Ивановская область | D111: 31021908 | E111: ООО "Завод подъемников" | F111: 3711039850 | G111: 371101001 | J111: WARM
A112: 111 | B112: 2591 | C112: Ивановская область | D112: 30374800 | E112: ООО "Заря" | F112: 3705009061 | G112: 370501001 | J112: WARM
A113: 112 | B113: 2591 | C113: Ивановская область | D113: 30905597 | E113: ООО "ИвСтройМатериалы" | F113: 3702158347 | G113: 370201001 | J113: WARM
A114: 113 | B114: 2591 | C114: Ивановская область | D114: 26524290 | E114: ООО "Ивановская Тепловая Электростанция" | F114: 3702070999 | G114: 370201001 | J114: WARM
A115: 114 | B115: 2591 | C115: Ивановская область | D115: 30905384 | E115: ООО "Ивановская биоэнергетическая компания" | F115: 3706024111 | G115: 370601001 | J115: WARM
A116: 115 | B116: 2591 | C116: Ивановская область | D116: 31021917 | E116: ООО "Ивановская областная типография-ОИТ" | F116: 3702161727 | G116: 370201001 | J116: WARM
A117: 116 | B117: 2591 | C117: Ивановская область | D117: 27556251 | E117: ООО "Ивановская энергетическая компания" | F117: 3702093192 | G117: 370201001 | J117: WARM
A118: 117 | B118: 2591 | C118: Ивановская область | D118: 30847071 | E118: ООО "Ивановская энергетическая компания-1" | F118: 3702124764 | G118: 370201001 | J118: WARM
A119: 118 | B119: 2591 | C119: Ивановская область | D119: 26647665 | E119: ООО "Ивжилкомсервис" | F119: 3706018132 | G119: 370601001 | J119: WARM
A120: 119 | B120: 2591 | C120: Ивановская область | D120: 26356329 | E120: ООО "Ивсиликат" | F120: 3702011425 | G120: 370201001 | J120: WARM
A121: 120 | B121: 2591 | C121: Ивановская область | D121: 27534701 | E121: ООО "Импульс" | F121: 3702533439 | G121: 370201001 | J121: WARM
A122: 121 | B122: 2591 | C122: Ивановская область | D122: 31037690 | E122: ООО "ИнвестЭнерго" | F122: 3711044459 | G122: 371101001 | H122: 27-10-2016 00:00:00 | J122: WARM
A123: 122 | B123: 2591 | C123: Ивановская область | D123: 28982037 | E123: ООО "КОММУНАЛЬЩИК" | F123: 3711034309 | G123: 371101001 | J123: WARM
A124: 123 | B124: 2591 | C124: Ивановская область | D124: 26524717 | E124: ООО "Каскад-Энергосбыт" | F124: 4028033356 | G124: 402801001 | J124: WARM
A125: 124 | B125: 2591 | C125: Ивановская область | D125: 31247000 | E125: ООО "Квартал" | F125: 3702184643 | G125: 370201001 | J125: WARM
A126: 125 | B126: 2591 | C126: Ивановская область | D126: 26356332 | E126: ООО "Кольма-тепло" | F126: 3702014666 | G126: 370201001 | J126: WARM
A127: 126 | B127: 2591 | C127: Ивановская область | D127: 30861278 | E127: ООО "Коммунальщик Ресурс" | F127: 3711039650 | G127: 371101001 | J127: WARM
A128: 127 | B128: 2591 | C128: Ивановская область | D128: 26610551 | E128: ООО "Коммунальщик" | F128: 3711024318 | G128: 371101001 | J128: WARM
A129: 128 | B129: 2591 | C129: Ивановская область | D129: 31250337 | E129: ООО "Контур" | F129: 3704010280 | G129: 370401001 | J129: WARM
A130: 129 | B130: 2591 | C130: Ивановская область | D130: 30847063 | E130: ООО "Контур-Т" | F130: 3711042927 | G130: 371101001 | J130: WARM
A131: 130 | B131: 2591 | C131: Ивановская область | D131: 28147607 | E131: ООО "Крайтекс-Ресурс" | F131: 7714821661 | G131: 370201001 | J131: WARM
A132: 131 | B132: 2591 | C132: Ивановская область | D132: 31169744 | E132: ООО "Купол" | F132: 3704005593 | G132: 370201001 | J132: WARM
A133: 132 | B133: 2591 | C133: Ивановская область | D133: 26372356 | E133: ООО "Курорт Оболсуново" | F133: 3724004407 | G133: 372401001 | J133: WARM
A134: 133 | B134: 2591 | C134: Ивановская область | D134: 28798621 | E134: ООО "Лен" | F134: 3705004401 | G134: 370501001 | J134: WARM
A135: 134 | B135: 2591 | C135: Ивановская область | D135: 28454323 | E135: ООО "МИП "Кинешма" | F135: 3703045850 | G135: 370301001 | J135: WARM
A136: 135 | B136: 2591 | C136: Ивановская область | D136: 31021922 | E136: ООО "МЭР" | F136: 3711045981 | G136: 371101001 | J136: WARM
A137: 136 | B137: 2591 | C137: Ивановская область | D137: 26356326 | E137: ООО "Машиностроительный завод" | F137: 3701005965 | G137: 370101001 | J137: WARM
A138: 137 | B138: 2591 | C138: Ивановская область | D138: 31250323 | E138: ООО "Межмуниципальное коммунальное предприятие" | F138: 3703044328 | G138: 370301001 | J138: WARM
A139: 138 | B139: 2591 | C139: Ивановская область | D139: 30914295 | E139: ООО "Межрегиональный инжиниринговый центр" | F139: 3702167447 | G139: 370201001 | J139: WARM
A140: 139 | B140: 2591 | C140: Ивановская область | D140: 30873138 | E140: ООО "МихалевоЭнергоРесурс" | F140: 3711044314 | G140: 371101001 | J140: WARM
A141: 140 | B141: 2591 | C141: Ивановская область | D141: 28462094 | E141: ООО "Модный дом" | F141: 3702613356 | G141: 370201001 | J141: WARM
A142: 141 | B142: 2591 | C142: Ивановская область | D142: 31259005 | E142: ООО "Нордтекс" | F142: 5001069981 | G142: 500101001 | J142: WARM
A143: 142 | B143: 2591 | C143: Ивановская область | D143: 26356443 | E143: ООО "Объединенные котельные" | F143: 3726005004 | G143: 372601001 | J143: WARM
A144: 143 | B144: 2591 | C144: Ивановская область | D144: 26756409 | E144: ООО "Октябрь" | F144: 3704562918 | G144: 370401001 | J144: WARM
A145: 144 | B145: 2591 | C145: Ивановская область | D145: 26356406 | E145: ООО "Палехская мануфактура" | F145: 3717005167 | G145: 371701001 | J145: WARM
A146: 145 | B146: 2591 | C146: Ивановская область | D146: 26550515 | E146: ООО "Палехская сбытовая компания" | F146: 3717005625 | G146: 371701001 | J146: WARM
A147: 146 | B147: 2591 | C147: Ивановская область | D147: 26356407 | E147: ООО "Палехское ПОК" | F147: 3717005590 | G147: 371701001 | J147: WARM
A148: 147 | B148: 2591 | C148: Ивановская область | D148: 30373753 | E148: ООО "Приволжская коммуна" | F148: 3703048040 | G148: 370301001 | J148: WARM
A149: 148 | B149: 2591 | C149: Ивановская область | D149: 28146368 | E149: ООО "Пучежская МТС" | F149: 3720006146 | G149: 372001001 | J149: WARM
A150: 149 | B150: 2591 | C150: Ивановская область | D150: 30941194 | E150: ООО "Районнная котельная № 2" | F150: 4401177267 | G150: 440101001 | J150: WARM
A151: 150 | B151: 2591 | C151: Ивановская область | D151: 28462123 | E151: ООО "Ресурс" | F151: 3702597633 | G151: 370201001 | J151: WARM
A152: 151 | B152: 2591 | C152: Ивановская область | D152: 31253002 | E152: ООО "РесурсЭнерго" | F152: 3702207918 | G152: 370201001 | J152: WARM
A153: 152 | B153: 2591 | C153: Ивановская область | D153: 28040266 | E153: ООО "Родниковская тепловая сеть" | F153: 3701047789 | G153: 370101001 | J153: WARM
A154: 153 | B154: 2591 | C154: Ивановская область | D154: 28869476 | E154: ООО "Родниковская теплосбытовая компания" | F154: 3701048165 | G154: 370101001 | J154: WARM
A155: 154 | B155: 2591 | C155: Ивановская область | D155: 28869990 | E155: ООО "Руса" | F155: 3702701348 | G155: 370643001 | J155: WARM
A156: 155 | B156: 2591 | C156: Ивановская область | D156: 31152367 | E156: ООО "СТРОЙ МАРКЕТ" | F156: 3327131102 | G156: 332701001 | H156: 08-12-2015 00:00:00 | J156: WARM
A157: 156 | B157: 2591 | C157: Ивановская область | D157: 28795677 | E157: ООО "СТС" | F157: 3702714668 | G157: 370201001 | J157: WARM
A158: 157 | B158: 2591 | C158: Ивановская область | D158: 26372329 | E158: ООО "Санаторий имени "Станко" | F158: 3713005769 | G158: 370301001 | J158: WARM
A159: 158 | B159: 2591 | C159: Ивановская область | D159: 26613253 | E159: ООО "Стеклолента" | F159: 3327844551 | G159: 371501001 | J159: WARM
A160: 159 | B160: 2591 | C160: Ивановская область | D160: 29647259 | E160: ООО "Стеклолента" | F160: 3328003030 | G160: 332801001 | H160: 21-04-2015 00:00:00 | J160: WARM
A161: 160 | B161: 2591 | C161: Ивановская область | D161: 26356327 | E161: ООО "ТДЛ Энерго" | F161: 3702005291 | G161: 370201001 | J161: WARM
A162: 161 | B162: 2591 | C162: Ивановская область | D162: 26766744 | E162: ООО "ТЕПЛО-Сервис" | F162: 3703040980 | G162: 370301001 | J162: WARM
A163: 162 | B163: 2591 | C163: Ивановская область | D163: 30844764 | E163: ООО "ТЕПЛОСЕРВИС" | F163: 3702155762 | G163: 370201001 | H163: 15-06-2016 00:00:00 | J163: WARM
A164: 163 | B164: 2591 | C164: Ивановская область | D164: 30358139 | E164: ООО "ТЕХУГЛЕРОДРЕСУРС" | F164: 3711038984 | G164: 371101001 | J164: WARM
A165: 164 | B165: 2591 | C165: Ивановская область | D165: 30382130 | E165: ООО "ТСП" | F165: 3704008548 | G165: 370401001 | J165: WARM
A166: 165 | B166: 2591 | C166: Ивановская область | D166: 31246822 | E166: ООО "ТЭС-Приволжск" | F166: 3705010317 | G166: 370501001 | H166: 28-09-2018 00:00:00 | J166: WARM
A167: 166 | B167: 2591 | C167: Ивановская область | D167: 26546370 | E167: ООО "Тейковская котельная" | F167: 3704561230 | G167: 370401001 | J167: WARM
A168: 167 | B168: 2591 | C168: Ивановская область | D168: 26550483 | E168: ООО "Тепло-восток" | F168: 3720004050 | G168: 372001001 | J168: WARM
A169: 168 | B169: 2591 | C169: Ивановская область | D169: 29645558 | E169: ООО "Тепло-город" | F169: 3720006883 | G169: 372001001 | J169: WARM
A170: 169 | B170: 2591 | C170: Ивановская область | D170: 26550442 | E170: ООО "Тепло-запад" | F170: 3720004068 | G170: 372001001 | J170: WARM
A171: 170 | B171: 2591 | C171: Ивановская область | D171: 26550481 | E171: ООО "Тепло-север" | F171: 3720004090 | G171: 372001001 | J171: WARM
A172: 171 | B172: 2591 | C172: Ивановская область | D172: 26550424 | E172: ООО "Тепло-село" | F172: 3720004082 | G172: 372001001 | J172: WARM
A173: 172 | B173: 2591 | C173: Ивановская область | D173: 26356374 | E173: ООО "Тепло-электро сети" | F173: 3708001984 | G173: 370801001 | J173: WARM
A174: 173 | B174: 2591 | C174: Ивановская область | D174: 26550462 | E174: ООО "Тепло-юг" | F174: 3720004075 | G174: 372001001 | J174: WARM
A175: 174 | B175: 2591 | C175: Ивановская область | D175: 26825437 | E175: ООО "ТеплоВодаКанализация" | F175: 3704570250 | G175: 370401001 | J175: WARM
A176: 175 | B176: 2591 | C176: Ивановская область | D176: 28829381 | E176: ООО "ТеплоМаш" | F176: 3701048905 | G176: 370101001 | J176: WARM
A177: 176 | B177: 2591 | C177: Ивановская область | D177: 28140313 | E177: ООО "ТеплоСбытовая Компания" | F177: 3706019231 | G177: 370601001 | J177: WARM
A178: 177 | B178: 2591 | C178: Ивановская область | D178: 28140301 | E178: ООО "ТеплоСнаб" | F178: 3711031643 | G178: 371101001 | J178: WARM
A179: 178 | B179: 2591 | C179: Ивановская область | D179: 26614199 | E179: ООО "ТеплоСнабжающая компания" | F179: 3706015501 | G179: 370601001 | J179: WARM
A180: 179 | B180: 2591 | C180: Ивановская область | D180: 31021847 | E180: ООО "ТеплоЭнерго" | F180: 3703020528 | G180: 370301001 | H180: 15-03-2017 00:00:00 | J180: WARM
A181: 180 | B181: 2591 | C181: Ивановская область | D181: 30844755 | E181: ООО "Тепловик" | F181: 3702114043 | G181: 370201001 | H181: 22-07-2015 00:00:00 | J181: WARM
A182: 181 | B182: 2591 | C182: Ивановская область | D182: 28466296 | E182: ООО "Тепловик" | F182: 3704006290 | G182: 370401001 | J182: WARM
A183: 182 | B183: 2591 | C183: Ивановская область | D183: 31021896 | E183: ООО "Тепловик" | F183: 3704009855 | G183: 370401001 | H183: 14-08-2017 00:00:00 | J183: WARM
A184: 183 | B184: 2591 | C184: Ивановская область | D184: 28458355 | E184: ООО "Тепловик" | F184: 3711032132 | G184: 371101001 | J184: WARM
A185: 184 | B185: 2591 | C185: Ивановская область | D185: 26514414 | E185: ООО "Тепловик" | F185: 3722003260 | G185: 372201001 | J185: WARM
A186: 185 | B186: 2591 | C186: Ивановская область | D186: 28468386 | E186: ООО "Тепловые и электрические сети" | F186: 3702706191 | G186: 370020100 | J186: WARM
A187: 186 | B187: 2591 | C187: Ивановская область | D187: 27589960 | E187: ООО "Тепловые системы" | F187: 3702504406 | G187: 370201001 | H187: 01-01-2007 00:00:00 | J187: WARM
A188: 187 | B188: 2591 | C188: Ивановская область | D188: 28458275 | E188: ООО "Тепловые энергетические системы" | F188: 3702684131 | G188: 370201001 | J188: WARM
A189: 188 | B189: 2591 | C189: Ивановская область | D189: 26611471 | E189: ООО "ТеплокоммунСервис" | F189: 3703043268 | G189: 370301001 | J189: WARM
A190: 189 | B190: 2591 | C190: Ивановская область | D190: 26407787 | E190: ООО "Теплосервис" | F190: 3716002519 | G190: 371601001 | J190: WARM
A191: 190 | B191: 2591 | C191: Ивановская область | D191: 26356351 | E191: ООО "Теплосетевая компания" | F191: 3703040531 | G191: 370301001 | J191: WARM
A192: 191 | B192: 2591 | C192: Ивановская область | D192: 26647639 | E192: ООО "Теплоснаб" | F192: 3703044462 | G192: 370301001 | J192: WARM
A193: 192 | B193: 2591 | C193: Ивановская область | D193: 27588345 | E193: ООО "Теплоснаб-2010" | F193: 3702630143 | G193: 370201001 | J193: WARM
A194: 193 | B194: 2591 | C194: Ивановская область | D194: 28869463 | E194: ООО "Теплоснаб-Родники" | F194: 3701048535 | G194: 370101001 | J194: WARM
A195: 194 | B195: 2591 | C195: Ивановская область | D195: 26407761 | E195: ООО "Теплотехническая компания" | F195: 3725007841 | G195: 372501001 | J195: WARM
A196: 195 | B196: 2591 | C196: Ивановская область | D196: 30384833 | E196: ООО "Теплотранс" | F196: 3701049360 | G196: 370101001 | H196: 28-09-2015 00:00:00 | J196: WARM
A197: 196 | B197: 2591 | C197: Ивановская область | D197: 26550499 | E197: ООО "Теплоцентраль" | F197: 3720004036 | G197: 372001001 | J197: WARM
A198: 197 | B198: 2591 | C198: Ивановская область | D198: 26356397 | E198: ООО "Теплоцентраль-1" | F198: 3713007678 | G198: 370301001 | J198: WARM
A199: 198 | B199: 2591 | C199: Ивановская область | D199: 26757860 | E199: ООО "Техуглеродресурс" | F199: 3711026731 | G199: 370101001 | J199: WARM
A200: 199 | B200: 2591 | C200: Ивановская область | D200: 28871105 | E200: ООО "Транзит" | F200: 3706020484 | G200: 370601001 | J200: WARM
... 41 more rows

Sheet modClassifierValidate (hidden)

Sheet modHyp (hidden)

Sheet modfrmDateChoose (hidden)

Sheet modComm (hidden)

Sheet modThisWorkbook (hidden)

Sheet REESTR_MO (hidden)
A1: № | B1: МР | C1: МО | D1: МО_ОКТМО
A2: 1 | B2: Верхнеландеховский муниципальный район | C2: Верхнеландеховский муниципальный район | D2: 24602000
A3: 2 | B3: Верхнеландеховский муниципальный район | C3: Верхнеландеховское городское поселение | D3: 24602151
A4: 3 | B4: Верхнеландеховский муниципальный район | C4: Кромское сельское поселение | D4: 24602420
A5: 4 | B5: Верхнеландеховский муниципальный район | C5: Мытское сельское поселение | D5: 24602427
A6: 5 | B6: Верхнеландеховский муниципальный район | C6: Симаковское сельское поселение | D6: 24602438
A7: 6 | B7: Вичугский муниципальный район | C7: Вичугский муниципальный район | D7: 24601000
A8: 7 | B8: Вичугский муниципальный район | C8: Каменское городское поселение | D8: 24601154
A9: 8 | B9: Вичугский муниципальный район | C9: Новописцовское городское поселение | D9: 24601157
A10: 9 | B10: Вичугский муниципальный район | C10: Октябрьское сельское поселение | D10: 24601410
A11: 10 | B11: Вичугский муниципальный район | C11: Сошниковское сельское поселение | D11: 24601440
A12: 11 | B12: Вичугский муниципальный район | C12: Старовичугское городское поселение | D12: 24601160
A13: 12 | B13: Вичугский муниципальный район | C13: Сунженское сельское поселение | D13: 24601446
A14: 13 | B14: Гаврилово-Посадский муниципальный район | C14: Гаврилово-Посадский муниципальный район | D14: 24603000
A15: 14 | B15: Гаврилово-Посадский муниципальный район | C15: Гаврилово-Посадское городское поселение | D15: 24603101
A16: 15 | B16: Гаврилово-Посадский муниципальный район | C16: Новоселковское сельское поселение | D16: 24603428
A17: 16 | B17: Гаврилово-Посадский муниципальный район | C17: Осановецкое сельское поселение | D17: 24603432
A18: 17 | B18: Гаврилово-Посадский муниципальный район | C18: Петровское городское поселение | D18: 24603156
A19: 18 | B19: Гаврилово-Посадский муниципальный район | C19: Шекшовское сельское поселение | D19: 24603440
A20: 19 | B20: Городской округ Вичуга | C20: Городской округ Вичуга | D20: 24703000
A21: 20 | B21: Городской округ Иваново | C21: Городской округ Иваново | D21: 24701000
A22: 21 | B22: Городской округ Кинешма | C22: Городской округ Кинешма | D22: 24705000
A23: 22 | B23: Городской округ Кохма | C23: Городской округ Кохма | D23: 24706000
A24: 23 | B24: Городской округ Тейково | C24: Городской округ Тейково | D24: 24707000
A25: 24 | B25: Городской округ Шуя | C25: Городской округ Шуя | D25: 24711000
A26: 25 | B26: Заволжский муниципальный район | C26: Волжское сельское поселение | D26: 24605410
A27: 26 | B27: Заволжский муниципальный район | C27: Дмитриевское сельское поселение | D27: 24605414
A28: 27 | B28: Заволжский муниципальный район | C28: Заволжский муниципальный район | D28: 24605000
A29: 28 | B29: Заволжский муниципальный район | C29: Заволжское городское поселение | D29: 24605101
A30: 29 | B30: Заволжский муниципальный район | C30: Междуреченское сельское поселенеие | D30: 24605445
A31: 30 | B31: Заволжский муниципальный район | C31: Сосневское сельское поселение | D31: 24605430
A32: 31 | B32: Ивановский муниципальный район | C32: Балахонковское сельское поселение | D32: 24607456
A33: 32 | B33: Ивановский муниципальный район | C33: Беляницкое сельское поселение | D33: 24607404
A34: 33 | B34: Ивановский муниципальный район | C34: Богданихское сельское поселение | D34: 24607440
A35: 34 | B35: Ивановский муниципальный район | C35: Богородское сельское поселение | D35: 24607412
A36: 35 | B36: Ивановский муниципальный район | C36: Ивановский муниципальный район | D36: 24607000
A37: 36 | B37: Ивановский муниципальный район | C37: Коляновское сельское поселение | D37: 24607424
A38: 37 | B38: Ивановский муниципальный район | C38: Куликовское сельское поселение | D38: 24607460
A39: 38 | B39: Ивановский муниципальный район | C39: Новоталицкое сельское поселение | D39: 24607448
A40: 39 | B40: Ивановский муниципальный район | C40: Озерновское сельское поселение | D40: 24607457
A41: 40 | B41: Ивановский муниципальный район | C41: Подвязновское сельское поселение | D41: 24607458
A42: 41 | B42: Ивановский муниципальный район | C42: Тимошихское сельское поселение | D42: 24607468
A43: 42 | B43: Ивановский муниципальный район | C43: Чернореченское сельское поселение | D43: 24607473
A44: 43 | B44: Ильинский муниципальный район | C44: Аньковское сельское поселение | D44: 24609408
A45: 44 | B45: Ильинский муниципальный район | C45: Ивашевское сельское поселение | D45: 24609416
A46: 45 | B46: Ильинский муниципальный район | C46: Ильинский муниципальный район | D46: 24609000
A47: 46 | B47: Ильинский муниципальный район | C47: Ильинское городское поселение | D47: 24609151
A48: 47 | B48: Ильинский муниципальный район | C48: Исаевское сельское поселение | D48: 24609428
A49: 48 | B49: Ильинский муниципальный район | C49: Щенниковское сельское поселение | D49: 24609452
A50: 49 | B50: Кинешемский муниципальный район | C50: Батмановское сельское поселение | D50: 24611404
A51: 50 | B51: Кинешемский муниципальный район | C51: Горковское сельское поселение | D51: 24611408
A52: 51 | B52: Кинешемский муниципальный район | C52: Кинешемский муниципальный район | D52: 24611000
A53: 52 | B53: Кинешемский муниципальный район | C53: Ласкарихинское сельское поселение | D53: 24611440
A54: 53 | B54: Кинешемский муниципальный район | C54: Луговское сельское поселение | D54: 24611428
A55: 54 | B55: Кинешемский муниципальный район | C55: Наволокское городское поселение | D55: 24611104
A56: 55 | B56: Кинешемский муниципальный район | C56: Решемское сельское поселение | D56: 24611436
A57: 56 | B57: Кинешемский муниципальный район | C57: Шилекшинское сельское поселение | D57: 24611448
A58: 57 | B58: Комсомольский муниципальный район | C58: Комсомольский муниципальный район | D58: 24613000
A59: 58 | B59: Комсомольский муниципальный район | C59: Комсомольское городское поселение | D59: 24613101
A60: 59 | B60: Комсомольский муниципальный район | C60: Марковское сельское поселение | D60: 24613415
A61: 60 | B61: Комсомольский муниципальный район | C61: Новоусадебское сельское поселение | D61: 24613424
A62: 61 | B62: Комсомольский муниципальный район | C62: Октябрьское сельское поселение | D62: 24613430
A63: 62 | B63: Комсомольский муниципальный район | C63: Писцовское сельское поселение | D63: 24613432
A64: 63 | B64: Комсомольский муниципальный район | C64: Подозерское сельское поселение | D64: 24613433
A65: 64 | B65: Лежневский муниципальный район | C65: Лежневский муниципальный район | D65: 24614000
A66: 65 | B66: Лежневский муниципальный район | C66: Лежневское городское поселение | D66: 24614151
A67: 66 | B67: Лежневский муниципальный район | C67: Лежневское сельское поселение | D67: 24614430
A68: 67 | B68: Лежневский муниципальный район | C68: Новогоркинское сельское поселение | D68: 24614435
A69: 68 | B69: Лежневский муниципальный район | C69: Сабиновское сельское поселение | D69: 24614415
A70: 69 | B70: Лежневский муниципальный район | C70: Шилыковское сельское поселение | D70: 24614470
A71: 70 | B71: Лухский муниципальный район | C71: Благовещенское сельское поселение | D71: 24615408
A72: 71 | B72: Лухский муниципальный район | C72: Лухский муниципальный район | D72: 24615000
A73: 72 | B73: Лухский муниципальный район | C73: Лухское городское поселение | D73: 24615151
A74: 73 | B74: Лухский муниципальный район | C74: Порздневское сельское поселение | D74: 24615424
A75: 74 | B75: Лухский муниципальный район | C75: Рябовское сельское поселение | D75: 24615428
A76: 75 | B76: Лухский муниципальный район | C76: Тимирязевское сельское поселение | D76: 24615432
A77: 76 | B77: Палехский муниципальный район | C77: Майдаковское сельское поселение | D77: 24617412
A78: 77 | B78: Палехский муниципальный район | C78: Палехский муниципальный район | D78: 24617000
A79: 78 | B79: Палехский муниципальный район | C79: Палехское городское поселение | D79: 24617151
A80: 79 | B80: Палехский муниципальный район | C80: Пановское сельское поселение | D80: 24617424
A81: 80 | B81: Палехский муниципальный район | C81: Раменское сельское поселение | D81: 24617436
A82: 81 | B82: Пестяковский муниципальный район | C82: Нижнеландеховское сельское поселение | D82: 24619444
A83: 82 | B83: Пестяковский муниципальный район | C83: Пестяковский муниципальный район | D83: 24619000
A84: 83 | B84: Пестяковский муниципальный район | C84: Пестяковское городское поселение | D84: 24619151
A85: 84 | B85: Пестяковский муниципальный район | C85: Пестяковское сельское поселение | D85: 24619448
A86: 85 | B86: Приволжский муниципальный район | C86: Ингарское сельское поселение | D86: 24620416
A87: 86 | B87: Приволжский муниципальный район | C87: Новское сельское поселение | D87: 24620434
A88: 87 | B88: Приволжский муниципальный район | C88: Плесское городское поселение | D88: 24620104
A89: 88 | B89: Приволжский муниципальный район | C89: Приволжский муниципальный район | D89: 24620000
A90: 89 | B90: Приволжский муниципальный район | C90: Приволжское городское поселение | D90: 24620106
A91: 90 | B91: Приволжский муниципальный район | C91: Рождественское сельское поселение | D91: 24620440
A92: 91 | B92: Пучежский муниципальный район | C92: Затеихинское сельское поселение | D92: 24621412
A93: 92 | B93: Пучежский муниципальный район | C93: Илья-Высоковское сельское поселение | D93: 24621416
A94: 93 | B94: Пучежский муниципальный район | C94: Мортковское сельское поселение | D94: 24621436
A95: 94 | B95: Пучежский муниципальный район | C95: Пучежский муниципальный район | D95: 24621000
A96: 95 | B96: Пучежский муниципальный район | C96: Пучежское городское поселение | D96: 24621101
A97: 96 | B97: Пучежский муниципальный район | C97: Сеготское сельское поселение | D97: 24621444
A98: 97 | B98: Родниковский муниципальный район | C98: Каминское сельское поселение | D98: 24623406
A99: 98 | B99: Родниковский муниципальный район | C99: Парское сельское поселение | D99: 24623444
A100: 99 | B100: Родниковский муниципальный район | C100: Родниковский муниципальный район | D100: 24623000
A101: 100 | B101: Родниковский муниципальный район | C101: Родниковское городское поселение | D101: 24623101
A102: 101 | B102: Родниковский муниципальный район | C102: Филисовское сельское поселение | D102: 24623452
A103: 102 | B103: Савинский муниципальный район | C103: Архиповское сельское поселение | D103: 24625436
A104: 103 | B104: Савинский муниципальный район | C104: Вознесенское сельское поселение | D104: 24625404
A105: 104 | B105: Савинский муниципальный район | C105: Воскресенское сельское поселение | D105: 24625408
A106: 105 | B106: Савинский муниципальный район | C106: Горячевское сельское поселение | D106: 24625412
A107: 106 | B107: Савинский муниципальный район | C107: Савинский муниципальный район | D107: 24625000
A108: 107 | B108: Савинский муниципальный район | C108: Савинское городское поселение | D108: 24625151
A109: 108 | B109: Савинский муниципальный район | C109: Савинское сельское поселение | D109: 24625432
A110: 109 | B110: Тейковский муниципальный район | C110: Большеклочковское сельское поселение | D110: 24629408
A111: 110 | B111: Тейковский муниципальный район | C111: Крапивновское сельское поселение | D111: 24629416
A112: 111 | B112: Тейковский муниципальный район | C112: Морозовское сельское поселение | D112: 24629420
A113: 112 | B113: Тейковский муниципальный район | C113: Нерльское городское поселение | D113: 24629154
A114: 113 | B114: Тейковский муниципальный район | C114: Новогоряновское сельское поселение | D114: 24629430
A115: 114 | B115: Тейковский муниципальный район | C115: Новолеушинское сельское поселение | D115: 24629444
A116: 115 | B116: Тейковский муниципальный район | C116: Тейковский муниципальный район | D116: 24629000
A117: 116 | B117: Фурмановский муниципальный район | C117: Дуляпинское сельское поселение | D117: 24631412
A118: 117 | B118: Фурмановский муниципальный район | C118: Иванковское сельское поселение | D118: 24631436
A119: 118 | B119: Фурмановский муниципальный район | C119: Панинское сельское поселение | D119: 24631432
A120: 119 | B120: Фурмановский муниципальный район | C120: Фурмановский муниципальный район | D120: 24631000
A121: 120 | B121: Фурмановский муниципальный район | C121: Фурмановское городское поселение | D121: 24631101
A122: 121 | B122: Фурмановский муниципальный район | C122: Хромцовское сельское поселение | D122: 24631406
A123: 122 | B123: Фурмановский муниципальный район | C123: Широковское сельское поселение | D123: 24631456
A124: 123 | B124: Шуйский муниципальный район | C124: Афанасьевское сельское поселение | D124: 24633408
A125: 124 | B125: Шуйский муниципальный район | C125: Васильевское сельское поселение | D125: 24633412
A126: 125 | B126: Шуйский муниципальный район | C126: Введенское сельское поселение | D126: 24633472
A127: 126 | B127: Шуйский муниципальный район | C127: Китовское сельское поселение | D127: 24633440
A128: 127 | B128: Шуйский муниципальный район | C128: Колобовское городское поселение | D128: 24633154
A129: 128 | B129: Шуйский муниципальный район | C129: Остаповское сельское поселение | D129: 24633432
A130: 129 | B130: Шуйский муниципальный район | C130: Перемиловское сельское поселение | D130: 24633456
A131: 130 | B131: Шуйский муниципальный район | C131: Семейкинское сельское поселение | D131: 24633460
A132: 131 | B132: Шуйский муниципальный район | C132: Шуйский муниципальный район | D132: 24633000
A133: 132 | B133: Южский муниципальный район | C133: Мугреево-Никольское сельское поселение | D133: 24635407
A134: 133 | B134: Южский муниципальный район | C134: Новоклязьминское сельское поселени | D134: 24635416
A135: 134 | B135: Южский муниципальный район | C135: Талицко-Мугреевское сельское поселение | D135: 24635420
A136: 135 | B136: Южский муниципальный район | C136: Холуйское сельское поселение | D136: 24635406
A137: 136 | B137: Южский муниципальный район | C137: Хотимльское сельское поселение | D137: 24635424
A138: 137 | B138: Южский муниципальный район | C138: Южский муниципальный район | D138: 24635000
A139: 138 | B139: Южский муниципальный район | C139: Южское городское поселение | D139: 24635101
A140: 139 | B140: Юрьевецкий муниципальный район | C140: Ёлнатское сельское поселение | D140: 24637404
A141: 140 | B141: Юрьевецкий муниципальный район | C141: Михайловское сельское поселение | D141: 24637424
A142: 141 | B142: Юрьевецкий муниципальный район | C142: Соболевское сельское поселение | D142: 24637432
A143: 142 | B143: Юрьевецкий муниципальный район | C143: Юрьевецкий муниципальный район | D143: 24637000
A144: 143 | B144: Юрьевецкий муниципальный район | C144: Юрьевецкое городское поселение | D144: 24637101

Sheet REESTR_MO_FILTER (hidden)

Sheet modfrmReestrMR (hidden)

Sheet modServiceModule (hidden)

Sheet modfrmCheckUpdates (hidden)

Sheet REESTR_DS (hidden)
B3: Городской округ Иваново, Городской округ Иваново (24701000);

Sheet REESTR_CHS (hidden)

Sheet REESTR_LINK (hidden)
A1: ID | B1: LINK_NAME | C1: REGION
A2: 4189678 | B2: https://portal.eias.ru/Portal/DownloadPage.aspx?type=12&guid=????????-????-????-????-???????????? | C2: ALL
A3: 4190415 | B3: https://eias.fstrf.ru/disclo/get_file?p_guid=????????-????-????-????-???????????? | C3: ALL
